{"text_format":"1","workbook":"xlsx","n_sheets":9,"sheets":["Introduction and Guidance","Planting Information","Planting and NC Locations","Contributions in Kind","PPR Declaration","Claim Form - Part 1 ","Claim Form - Part 2","Maps and Photos Guidance","Plant Healthy Nurseries"],"not_rendered":{"charts":0,"images":6,"macros":1,"external_links":1,"defined_names":13,"comments":0,"pivot_tables":0},"unopened":[],"bounds":{"document_bytes":16777216,"sheet_cells":100000,"rows_first":2000,"rows_last":500,"rows_between":2000,"halvings":0,"cell_chars":16384,"cell_head_chars":4096},"cells_cut":0,"cells_raw":0,"read":"whole","date_system":"1900"}

{"sheet":"Introduction and Guidance","index":0,"n_rows":0,"n_cols":0,"rows_kept":0,"cut":false,"hidden":false,"merged":[]}

{"sheet":"Planting Information","index":1,"n_rows":59,"n_cols":12,"rows_kept":59,"cut":false,"hidden":false,"merged":[[1,1,1,2],[4,1,9,2]]}
[]
[null,"Table 1.1 LATF Planting Details: Please complete all requested information below\n\n"]
[null,"Planting (Year 1 or 2):",null,null,null,"Table 1.2: Conifer Species (manually enter the Species)","Nursery sourced from (if not Plant Healthy Certified, choose this option and complete column I)","Nursery sourced from if not Plant Healthy Certified (include nursery name and unique RtP assessment voucher reference)","Total No. of Whips Planted this Financial Year","Total No. of Feathers Planted this Financial Year","Total No. of Standard Trees Planted this Financial Year","Total No. of Trees Planted (AUTO)"]
[null,"Financial Year (e.g. 2023-24):",null,null,null,null,null,null,null,null,null,{"$f":"IF(SUM(Table18[[#This Row],[Total No. of Whips Planted this Financial Year]:[Total No. of Standard Trees Planted this Financial Year]])=0,\"AUTO\", +Table18[[#This Row],[Total No. of Whips Planted this Financial Year]]+Table18[[#This Row],[Total No. of Feathers Planted this Financial Year]]+Table18[[#This Row],[Total No. of Standard Trees Planted this Financial Year]])","v":"AUTO"}]
[null,null,null,null,null,null,null,null,null,null,null,{"$f":"IF(SUM(Table18[[#This Row],[Total No. of Whips Planted this Financial Year]:[Total No. of Standard Trees Planted this Financial Year]])=0,\"AUTO\", +Table18[[#This Row],[Total No. of Whips Planted this Financial Year]]+Table18[[#This Row],[Total No. of Feathers Planted this Financial Year]]+Table18[[#This Row],[Total No. of Standard Trees Planted this Financial Year]])","v":"AUTO"}]
[null,null,null,null,null,null,null,null,null,null,null,{"$f":"IF(SUM(Table18[[#This Row],[Total No. of Whips Planted this Financial Year]:[Total No. of Standard Trees Planted this Financial Year]])=0,\"AUTO\", +Table18[[#This Row],[Total No. of Whips Planted this Financial Year]]+Table18[[#This Row],[Total No. of Feathers Planted this Financial Year]]+Table18[[#This Row],[Total No. of Standard Trees Planted this Financial Year]])","v":"AUTO"}]
[null,null,null,null,null,null,null,null,null,null,null,{"$f":"IF(SUM(Table18[[#This Row],[Total No. of Whips Planted this Financial Year]:[Total No. of Standard Trees Planted this Financial Year]])=0,\"AUTO\", +Table18[[#This Row],[Total No. of Whips Planted this Financial Year]]+Table18[[#This Row],[Total No. of Feathers Planted this Financial Year]]+Table18[[#This Row],[Total No. of Standard Trees Planted this Financial Year]])","v":"AUTO"}]
[null,null,null,null,null,null,null,null,null,null,null,{"$f":"IF(SUM(Table18[[#This Row],[Total No. of Whips Planted this Financial Year]:[Total No. of Standard Trees Planted this Financial Year]])=0,\"AUTO\", +Table18[[#This Row],[Total No. of Whips Planted this Financial Year]]+Table18[[#This Row],[Total No. of Feathers Planted this Financial Year]]+Table18[[#This Row],[Total No. of Standard Trees Planted this Financial Year]])","v":"AUTO"}]
[null,null,null,null,null,null,null,null,null,null,null,{"$f":"IF(SUM(Table18[[#This Row],[Total No. of Whips Planted this Financial Year]:[Total No. of Standard Trees Planted this Financial Year]])=0,\"AUTO\", +Table18[[#This Row],[Total No. of Whips Planted this Financial Year]]+Table18[[#This Row],[Total No. of Feathers Planted this Financial Year]]+Table18[[#This Row],[Total No. of Standard Trees Planted this Financial Year]])","v":"AUTO"}]
[null,null,null,null,null,null,null,null,null,null,null,{"$f":"IF(SUM(Table18[[#This Row],[Total No. of Whips Planted this Financial Year]:[Total No. of Standard Trees Planted this Financial Year]])=0,\"AUTO\", +Table18[[#This Row],[Total No. of Whips Planted this Financial Year]]+Table18[[#This Row],[Total No. of Feathers Planted this Financial Year]]+Table18[[#This Row],[Total No. of Standard Trees Planted this Financial Year]])","v":"AUTO"}]
[null,null,null,null,null,null,null,null,null,null,null,{"$f":"IF(SUM(Table18[[#This Row],[Total No. of Whips Planted this Financial Year]:[Total No. of Standard Trees Planted this Financial Year]])=0,\"AUTO\", +Table18[[#This Row],[Total No. of Whips Planted this Financial Year]]+Table18[[#This Row],[Total No. of Feathers Planted this Financial Year]]+Table18[[#This Row],[Total No. of Standard Trees Planted this Financial Year]])","v":"AUTO"}]
[null,null,null,null,null,null,null,null,null,null,null,{"$f":"IF(SUM(Table18[[#This Row],[Total No. of Whips Planted this Financial Year]:[Total No. of Standard Trees Planted this Financial Year]])=0,\"AUTO\", +Table18[[#This Row],[Total No. of Whips Planted this Financial Year]]+Table18[[#This Row],[Total No. of Feathers Planted this Financial Year]]+Table18[[#This Row],[Total No. of Standard Trees Planted this Financial Year]])","v":"AUTO"}]
[null,null,null,null,null,null,null,null,null,null,null,{"$f":"IF(SUM(Table18[[#This Row],[Total No. of Whips Planted this Financial Year]:[Total No. of Standard Trees Planted this Financial Year]])=0,\"AUTO\", +Table18[[#This Row],[Total No. of Whips Planted this Financial Year]]+Table18[[#This Row],[Total No. of Feathers Planted this Financial Year]]+Table18[[#This Row],[Total No. of Standard Trees Planted this Financial Year]])","v":"AUTO"}]
[null,null,null,null,null,null,null,null,null,null,null,{"$f":"IF(SUM(Table18[[#This Row],[Total No. of Whips Planted this Financial Year]:[Total No. of Standard Trees Planted this Financial Year]])=0,\"AUTO\", +Table18[[#This Row],[Total No. of Whips Planted this Financial Year]]+Table18[[#This Row],[Total No. of Feathers Planted this Financial Year]]+Table18[[#This Row],[Total No. of Standard Trees Planted this Financial Year]])","v":"AUTO"}]
[null,null,null,null,null,null,null,null,null,null,null,{"$f":"IF(SUM(Table18[[#This Row],[Total No. of Whips Planted this Financial Year]:[Total No. of Standard Trees Planted this Financial Year]])=0,\"AUTO\", +Table18[[#This Row],[Total No. of Whips Planted this Financial Year]]+Table18[[#This Row],[Total No. of Feathers Planted this Financial Year]]+Table18[[#This Row],[Total No. of Standard Trees Planted this Financial Year]])","v":"AUTO"}]
[null,null,null,null,null,null,null,null,null,null,null,{"$f":"IF(SUM(Table18[[#This Row],[Total No. of Whips Planted this Financial Year]:[Total No. of Standard Trees Planted this Financial Year]])=0,\"AUTO\", +Table18[[#This Row],[Total No. of Whips Planted this Financial Year]]+Table18[[#This Row],[Total No. of Feathers Planted this Financial Year]]+Table18[[#This Row],[Total No. of Standard Trees Planted this Financial Year]])","v":"AUTO"}]
[null,null,null,null,null,null,null,null,null,null,null,{"$f":"IF(SUM(Table18[[#This Row],[Total No. of Whips Planted this Financial Year]:[Total No. of Standard Trees Planted this Financial Year]])=0,\"AUTO\", +Table18[[#This Row],[Total No. of Whips Planted this Financial Year]]+Table18[[#This Row],[Total No. of Feathers Planted this Financial Year]]+Table18[[#This Row],[Total No. of Standard Trees Planted this Financial Year]])","v":"AUTO"}]
[null,null,null,null,null,null,null,null,null,null,null,{"$f":"IF(SUM(Table18[[#This Row],[Total No. of Whips Planted this Financial Year]:[Total No. of Standard Trees Planted this Financial Year]])=0,\"AUTO\", +Table18[[#This Row],[Total No. of Whips Planted this Financial Year]]+Table18[[#This Row],[Total No. of Feathers Planted this Financial Year]]+Table18[[#This Row],[Total No. of Standard Trees Planted this Financial Year]])","v":"AUTO"}]
[null,null,null,null,null,"Total",null,null,{"$f":"SUBTOTAL(109,Table18[Total No. of Whips Planted this Financial Year])","v":0},{"$f":"SUBTOTAL(109,Table18[Total No. of Feathers Planted this Financial Year])","v":0},{"$f":"SUBTOTAL(109,Table18[Total No. of Standard Trees Planted this Financial Year])","v":0},{"$f":"SUBTOTAL(109,Table18[Total No. of Trees Planted (AUTO)])","v":0}]
[]
[]
[]
[null,null,null,null,null,"Table 1.3: Broadleaf species (manually enter the species)","Nursery sourced from (if not Plant Healthy Certified, choose this option and complete column I)","Nursery sourced from if not Plant Healthy Certified (include nursery name and unique RtP assessment voucher reference)","Total No. of Whips Planted this Financial Year","Total No. of Feathers Planted this Financial Year","Total No. of Standard Trees Planted this Financial Year","Total No. of Trees Planted (AUTO)"]
[null,null,null,null,null,null,null,null,null,null,null,{"$f":"IF(SUM(Table44[[#This Row],[Total No. of Whips Planted this Financial Year]:[Total No. of Standard Trees Planted this Financial Year]])=0,\"AUTO\",+Table44[[#This Row],[Total No. of Whips Planted this Financial Year]]+Table44[[#This Row],[Total No. of Feathers Planted this Financial Year]]+Table44[[#This Row],[Total No. of Standard Trees Planted this Financial Year]])","v":"AUTO"}]
[null,null,null,null,null,null,null,null,null,null,null,{"$f":"IF(SUM(Table44[[#This Row],[Total No. of Whips Planted this Financial Year]:[Total No. of Standard Trees Planted this Financial Year]])=0,\"AUTO\",+Table44[[#This Row],[Total No. of Whips Planted this Financial Year]]+Table44[[#This Row],[Total No. of Feathers Planted this Financial Year]]+Table44[[#This Row],[Total No. of Standard Trees Planted this Financial Year]])","v":"AUTO"}]
[null,null,null,null,null,null,null,null,null,null,null,{"$f":"IF(SUM(Table44[[#This Row],[Total No. of Whips Planted this Financial Year]:[Total No. of Standard Trees Planted this Financial Year]])=0,\"AUTO\",+Table44[[#This Row],[Total No. of Whips Planted this Financial Year]]+Table44[[#This Row],[Total No. of Feathers Planted this Financial Year]]+Table44[[#This Row],[Total No. of Standard Trees Planted this Financial Year]])","v":"AUTO"}]
[null,null,null,null,null,null,null,null,null,null,null,{"$f":"IF(SUM(Table44[[#This Row],[Total No. of Whips Planted this Financial Year]:[Total No. of Standard Trees Planted this Financial Year]])=0,\"AUTO\",+Table44[[#This Row],[Total No. of Whips Planted this Financial Year]]+Table44[[#This Row],[Total No. of Feathers Planted this Financial Year]]+Table44[[#This Row],[Total No. of Standard Trees Planted this Financial Year]])","v":"AUTO"}]
[null,null,null,null,null,null,null,null,null,null,null,{"$f":"IF(SUM(Table44[[#This Row],[Total No. of Whips Planted this Financial Year]:[Total No. of Standard Trees Planted this Financial Year]])=0,\"AUTO\",+Table44[[#This Row],[Total No. of Whips Planted this Financial Year]]+Table44[[#This Row],[Total No. of Feathers Planted this Financial Year]]+Table44[[#This Row],[Total No. of Standard Trees Planted this Financial Year]])","v":"AUTO"}]
[null,null,null,null,null,null,null,null,null,null,null,{"$f":"IF(SUM(Table44[[#This Row],[Total No. of Whips Planted this Financial Year]:[Total No. of Standard Trees Planted this Financial Year]])=0,\"AUTO\",+Table44[[#This Row],[Total No. of Whips Planted this Financial Year]]+Table44[[#This Row],[Total No. of Feathers Planted this Financial Year]]+Table44[[#This Row],[Total No. of Standard Trees Planted this Financial Year]])","v":"AUTO"}]
[null,null,null,null,null,null,null,null,null,null,null,{"$f":"IF(SUM(Table44[[#This Row],[Total No. of Whips Planted this Financial Year]:[Total No. of Standard Trees Planted this Financial Year]])=0,\"AUTO\",+Table44[[#This Row],[Total No. of Whips Planted this Financial Year]]+Table44[[#This Row],[Total No. of Feathers Planted this Financial Year]]+Table44[[#This Row],[Total No. of Standard Trees Planted this Financial Year]])","v":"AUTO"}]
[null,null,null,null,null,null,null,null,null,null,null,{"$f":"IF(SUM(Table44[[#This Row],[Total No. of Whips Planted this Financial Year]:[Total No. of Standard Trees Planted this Financial Year]])=0,\"AUTO\",+Table44[[#This Row],[Total No. of Whips Planted this Financial Year]]+Table44[[#This Row],[Total No. of Feathers Planted this Financial Year]]+Table44[[#This Row],[Total No. of Standard Trees Planted this Financial Year]])","v":"AUTO"}]
[null,null,null,null,null,null,null,null,null,null,null,{"$f":"IF(SUM(Table44[[#This Row],[Total No. of Whips Planted this Financial Year]:[Total No. of Standard Trees Planted this Financial Year]])=0,\"AUTO\",+Table44[[#This Row],[Total No. of Whips Planted this Financial Year]]+Table44[[#This Row],[Total No. of Feathers Planted this Financial Year]]+Table44[[#This Row],[Total No. of Standard Trees Planted this Financial Year]])","v":"AUTO"}]
[null,null,null,null,null,null,null,null,null,null,null,{"$f":"IF(SUM(Table44[[#This Row],[Total No. of Whips Planted this Financial Year]:[Total No. of Standard Trees Planted this Financial Year]])=0,\"AUTO\",+Table44[[#This Row],[Total No. of Whips Planted this Financial Year]]+Table44[[#This Row],[Total No. of Feathers Planted this Financial Year]]+Table44[[#This Row],[Total No. of Standard Trees Planted this Financial Year]])","v":"AUTO"}]
[null,null,null,null,null,null,null,null,null,null,null,{"$f":"IF(SUM(Table44[[#This Row],[Total No. of Whips Planted this Financial Year]:[Total No. of Standard Trees Planted this Financial Year]])=0,\"AUTO\",+Table44[[#This Row],[Total No. of Whips Planted this Financial Year]]+Table44[[#This Row],[Total No. of Feathers Planted this Financial Year]]+Table44[[#This Row],[Total No. of Standard Trees Planted this Financial Year]])","v":"AUTO"}]
[null,null,null,null,null,null,null,null,null,null,null,{"$f":"IF(SUM(Table44[[#This Row],[Total No. of Whips Planted this Financial Year]:[Total No. of Standard Trees Planted this Financial Year]])=0,\"AUTO\",+Table44[[#This Row],[Total No. of Whips Planted this Financial Year]]+Table44[[#This Row],[Total No. of Feathers Planted this Financial Year]]+Table44[[#This Row],[Total No. of Standard Trees Planted this Financial Year]])","v":"AUTO"}]
[null,null,null,null,null,null,null,null,null,null,null,{"$f":"IF(SUM(Table44[[#This Row],[Total No. of Whips Planted this Financial Year]:[Total No. of Standard Trees Planted this Financial Year]])=0,\"AUTO\",+Table44[[#This Row],[Total No. of Whips Planted this Financial Year]]+Table44[[#This Row],[Total No. of Feathers Planted this Financial Year]]+Table44[[#This Row],[Total No. of Standard Trees Planted this Financial Year]])","v":"AUTO"}]
[null,null,null,null,null,"Total",null,null,{"$f":"SUBTOTAL(109,Table44[Total No. of Whips Planted this Financial Year])","v":0},{"$f":"SUBTOTAL(109,Table44[Total No. of Feathers Planted this Financial Year])","v":0},{"$f":"SUBTOTAL(109,Table44[Total No. of Standard Trees Planted this Financial Year])","v":0},{"$f":"SUBTOTAL(109,Table44[Total No. of Trees Planted (AUTO)])","v":0}]
[]
[]
[]
[]
[null,null,null,null,null,"Table 1.4: Capital Items Acquired ","Quantity"]
[]
[]
[]
[]
[]
[]
[]
[]
[]
[]
[]
[]
[]
[]
[]
[]
[null,null,null,null,null,"Total",{"$f":"SUBTOTAL(109,Table8[Quantity])","v":0}]

{"sheet":"Planting and NC Locations","index":2,"n_rows":40,"n_cols":18,"rows_kept":40,"cut":false,"hidden":false,"merged":[]}
[]
[null,"Site Name\nLarge sites with multiple discrete blocks of planting or single trees can be split into separate site entries if preferred","Photo name/reference","Map Name/reference","National Grid Reference","Natural Colonisation or Planting Site?","Planting Date (Month/Year)","Total Area (Ha)\nThis must be no greater than 0.5 Ha or it will be rejected.","Is This Site Publicly Accessible?","Does the proposed planting site fall on land located within Lower Super Output Areas (LSOAs) and Medium Super Output Areas (MSOAs) which are within the 25% most deprived according to the national Index of Multiple Deprivation","Total No. of Broadleaf Whips","Total No. of Broadleaf Feathers","Total No. of Broadleaf Standards","Total No. of Broadleaf Trees","Total No. of Conifers Whips","Total No. of Conifers Feathers","Total No. of Conifers Standards","Total No. of Conifer Trees"]
[null,"Brook Road School Recreational Ground","Photo 1","Map 1","AB 1234 5678","Planting Site","(January/2023)",0.2,"Partial access","No",100,50,5,{"$f":"SUM(K3:M3)","v":155},1000,500,100,{"$f":"SUM(O3:Q3)","v":1600}]
[null,null,null,null,null,null,null,null,null,null,null,null,null,0,null,null,null,0]
[null,null,null,null,null,null,null,null,null,null,null,null,null,0,null,null,null,0]
[null,null,null,null,null,null,null,null,null,null,null,null,null,0,null,null,null,0]
[null,null,null,null,null,null,null,null,null,null,null,null,null,0,null,null,null,0]
[null,null,null,null,null,null,null,null,null,null,null,null,null,0,null,null,null,0]
[null,null,null,null,null,null,null,null,null,null,null,null,null,0,null,null,null,0]
[null,null,null,null,null,null,null,null,null,null,null,null,null,0,null,null,null,0]
[null,null,null,null,null,null,null,null,null,null,null,null,null,0,null,null,null,0]
[null,null,null,null,null,null,null,null,null,null,null,null,null,0,null,null,null,0]
[null,null,null,null,null,null,null,null,null,null,null,null,null,0,null,null,null,0]
[null,null,null,null,null,null,null,null,null,null,null,null,null,0,null,null,null,0]
[null,null,null,null,null,null,null,null,null,null,null,null,null,0,null,null,null,0]
[null,null,null,null,null,null,null,null,null,null,null,null,null,0,null,null,null,0]
[null,null,null,null,null,null,null,null,null,null,null,null,null,0,null,null,null,0]
[null,null,null,null,null,null,null,null,null,null,null,null,null,0,null,null,null,0]
[null,null,null,null,null,null,null,null,null,null,null,null,null,0,null,null,null,0]
[null,null,null,null,null,null,null,null,null,null,null,null,null,0,null,null,null,0]
[null,null,null,null,null,null,null,null,null,null,null,null,null,0,null,null,null,0]
[null,null,null,null,null,null,null,null,null,null,null,null,null,0,null,null,null,0]
[null,null,null,null,null,null,null,null,null,null,null,null,null,0,null,null,null,0]
[null,null,null,null,null,null,null,null,null,null,null,null,null,0,null,null,null,0]
[null,null,null,null,null,null,null,null,null,null,null,null,null,0,null,null,null,0]
[null,null,null,null,null,null,null,null,null,null,null,null,null,0,null,null,null,0]
[null,null,null,null,null,null,null,null,null,null,null,null,null,0,null,null,null,0]
[null,null,null,null,null,null,null,null,null,null,null,null,null,0,null,null,null,0]
[null,null,null,null,null,null,null,null,null,null,null,null,null,0,null,null,null,0]
[null,null,null,null,null,null,null,null,null,null,null,null,null,0,null,null,null,0]
[null,null,null,null,null,null,null,null,null,null,null,null,null,0,null,null,null,0]
[null,null,null,null,null,null,null,null,null,null,null,null,null,0,null,null,null,0]
[null,null,null,null,null,null,null,null,null,null,null,null,null,0,null,null,null,0]
[null,null,null,null,null,null,null,null,null,null,null,null,null,0,null,null,null,0]
[null,null,null,null,null,null,null,null,null,null,null,null,null,{"$f":"SUM(K35:M35)","v":0},null,null,null,{"$f":"SUM(O35:Q35)","v":0}]
[null,null,null,null,null,null,null,null,null,null,null,null,null,{"$f":"SUM(K36:M36)","v":0},null,null,null,{"$f":"SUM(O36:Q36)","v":0}]
[null,null,null,null,null,null,null,null,null,null,null,null,null,{"$f":"SUM(K37:M37)","v":0},null,null,null,{"$f":"SUM(O37:Q37)","v":0}]
[null,null,null,null,null,null,null,null,null,null,null,null,null,{"$f":"SUM(K38:M38)","v":0},null,null,null,{"$f":"SUM(O38:Q38)","v":0}]
[null,null,null,null,null,null,null,null,null,null,null,null,null,{"$f":"SUM(K39:M39)","v":0},null,null,null,{"$f":"SUM(O39:Q39)","v":0}]
[null,"Total",null,null,null,null,null,null,null,null,{"$f":"SUBTOTAL(109,Table13[Total No. of Broadleaf Whips])-SUM(K3)","v":0},{"$f":"SUBTOTAL(109,Table13[Total No. of Broadleaf Feathers])-SUM(L3)","v":0},{"$f":"SUBTOTAL(109,Table13[Total No. of Broadleaf Standards])-SUM(M3)","v":0},{"$f":"SUBTOTAL(109,Table13[Total No. of Broadleaf Trees])-SUM(N3)","v":0},{"$f":"SUBTOTAL(109,Table13[Total No. of Conifers Whips])-SUM(O3)","v":0},{"$f":"SUBTOTAL(109,Table13[Total No. of Conifers Feathers])-SUM(P3)","v":0},{"$f":"SUBTOTAL(109,Table13[Total No. of Conifers Standards])-SUM(Q3)","v":0},{"$f":"SUBTOTAL(109,Table13[Total No. of Conifer Trees])-SUM(R3)","v":0}]

{"sheet":"Contributions in Kind","index":3,"n_rows":7,"n_cols":7,"rows_kept":7,"cut":false,"hidden":false,"merged":[]}
[]
[]
[]
[]
[]
[null,null,"3.2 Item / Activity","Contributing Party","Quantity (if applicable)","Has the contribution been made, is it ongoing or is it due? (select from list)","Comments"]
[null,null,"e.g. Spades","Jones DIY Store",10,"Contribution is ongoing","Spades provided throughout entire planting period which saved approx. £50"]

{"sheet":"PPR Declaration","index":4,"n_rows":0,"n_cols":0,"rows_kept":0,"cut":false,"hidden":false,"merged":[]}

{"sheet":"Claim Form - Part 1 ","index":5,"n_rows":26,"n_cols":2,"rows_kept":26,"cut":false,"hidden":false,"merged":[[25,0,25,1],[0,0,0,1],[3,0,3,1],[5,0,5,1],[10,0,10,1],[22,0,22,1]]}
["Local Authority Treescapes Fund (LATF) Claim Form \nSection 5: Claim Form - Part 1 - Details"]
[]
[]
["To be completed by all applicants\n\nAdvice to Agreement Holders: This section is for use by Lead Local Authorities awarded the Local Authority Treescapes Fund (LATF). You must use this form to claim capital costs awarded for trees and planting detailed in your previously issued LATF Grant Determination Letter or LATF Amendment Letter. This includes the LATF Post-Planting Claim (claim 2 & 4 - if a 2 year planting agreement).\n\nGuidance to help you complete this form can be found at https://www.gov.uk/government/publications/local-authority-treescape-fund-claim-form. You can also contact LATF@forestrycommission.gov.uk or call 0300 067 4177 for advice. "]
[]
["5.1 – Grant details"]
[null,"Please complete all fields"]
["LATF Agreement Reference Number:"]
["Claim year (financial year):"]
[]
["5.2 – Claimant details"]
[]
["Contact title:"]
["Forename(s):"]
["Surname:"]
["Are you the lead applicant, agent or other?"]
["Contact telephone number:"]
["Contact email:"]
["Lead Local Authority name (to be paid):\n"]
["Lead Local Authority address:\n"]
["Has the Lead LA issued a Section 114 notice since application?"]
[]
["5.3 – Tree Survival Rates"]
["Please confirm a minimum survival rate of 75% of planted trees per site. "]
[]
["Please complete the separate Claim Declaration form and return it with this completed grant \nform to submit your claim."]

{"sheet":"Claim Form - Part 2","index":6,"n_rows":55,"n_cols":16384,"rows_kept":55,"cut":false,"hidden":false,"merged":[[23,0,23,4],[32,0,32,4],[54,0,54,3],[18,0,18,4],[21,0,21,4],[19,0,19,4],[19,5,19,6],[20,0,20,4],[20,5,20,6],[22,0,22,4],[14,5,14,6],[15,5,15,6],[16,0,16,4],[16,5,16,6],[18,5,18,6],[21,5,21,6],[17,0,17,4],[17,5,17,6],[14,0,14,4],[9,0,9,6],[0,0,0,6],[2,0,2,6],[4,0,4,1],[4,2,4,6],[8,0,8,6],[11,0,11,3],[11,4,11,6],[12,0,12,4],[12,5,12,6],[13,0,13,4],[13,5,13,6]]}
["Local Authority Treescapes Fund (LATF) Claim Form \nSection 6: Claim Form - Part 2 - Capital Costs",null,null,null,null,null,null,null,")"]
[]
["6.1 Please select the relevant option below for this claim, and follow the instructions accordingly (select drop-down):"]
[]
["I am claiming Capital Costs"]
[]
[]
[]
[]
["6.2 Claim 2 - Post-planting"]
[]
["Please select the relevant claim option below (select drop-down):"]
["Does your claim include planting that has been deferred from a previous year? Only applies if this is a Year 2 Claim 4."]
["If Yes to the above, have you agreed a formal amendment? "]
["Please indicate if this is a full claim (for the remaining 50% of your agreed planting period value) or a partial claim (if you have not completed all of this years agreed works in this financial year)."]
[]
["TOTAL Tree/Capital Costs awarded for this financial year (excluding maintenance). This is detailed on your Offer of Funding/GD Letters or subsequent Amendment Letter, if applicable. Enter manually."]
["TOTAL Tree/Capital Costs already claimed this financial year (excluding maintenance.  This should be either your Claim 1 value if this is Claim 2 or your Claim 3 value if this is Claim 4).Enter manually."]
["TOTAL Tree/Capital expenditure this financial year (excluding maintenance). Autofills This cell calculates the total trees and capital item costs from the information you enter below.",null,null,null,null,{"$f":"E55","v":0}]
["TOTAL amount this claim is for (excluding maintenance). Autofills. \nThis cell will calculate your eligible claim value using the total expenditure for this financial year entered below and factoring in what was awarded for the year and what you have already been paid. If over-claiming for this claim, the value of the claim will limit to the maximum funds available this financial year. Enter the value in the cell on your Claims Declaration Form. If your total capital expenditure was covered in full by your pre-planting claim, the value will appear negative and this claim will be for £0 (enter £0 on your Claims Declaration Form in these cases).",null,null,null,null,{"$f":"IF(F19/2<=F17/2,F19-F18,F17-F18)","v":0},null,null,null,null,null,null,null,null,null,null,null,null,null,null,null,null,null,null,null,null,null,null,null,null,null,null,null,null,null,null,null,null,null,null,null,null,null,null,null,null,null,null,null,null,null,null,null,null,null,null,null,null,null,null,null,null,null,null,null,null,null,null,null,null,null,null,null,null,null,null,null,null,null,null,null,null,null,null,null,null,null,null,null,null,null,null,null,null,null,null,null,null,null,null,null,null,null,null,null,null,null,null,null,null,null,null,null,null,null,null,null,null,null,null,null,null,null,null,null,null,null,null,null,null,null,null,null,null,null,null,null,null,null,null,null,null,null,null,null,null,null,null,null,null,null,null,null,null,null,null,null,null,null,null,null,null,null,null,null,null,null,null,null,null,null,null,null,null,null,null,null,null,null,null,null,null,null,null,null,null,null,null,null,null,null,null,null,null,null,null,null,null,null,null,null,null,null,null,null,null,null,null,null,null,null,null,null,null,null,null,null,null,null,null,null,null,null,null,null,null,null,null,null,null,null,null,null,null,null,null,null,null,null,null,null,null,null,null,null,null,null,null,null,null,null,null,null,null,null,null,null,null,null,null,null,null,null,null,null,null,null,null,null,null,null,null,null,null,null,null,null,null,null,null,null,null,null,null,null,null,null,null,null,null,null,null,null,null,null,null,null,null,null,null,null,null,null,null,null,null,null,null,null,null,null,null,null,null,null,null,null,null,null,null,null,null,null,null,null,null,null,null,null,null,null,null,null,null,null,null,null,null,null,null,null,null,null,null,null,null,null,null,null,null,null,null,null,null,null,null,null,null,null,null,null,null,null,null,null,null,null,null,null,null,null,null,null,null,null,null,null,null,null,null,null,null,null,null,null,null,null,null,null,null,null,null,null,null,null,null,null,null,null,null,null,null,null,null,null,null,null,null,null,null,null,null,null,null,null,null,null,null,null,null,null,null,null,null,null,null,null,null,null,null,null,null,null,null,null,null,null,null,null,null,null,null,null,null,null,null,null,null,null,null,null,null,null,null,null,null,null,null,null,null,null,null,null,null,null,null,null,null,null,null,null,null,null,null,null,null,null,null,null,null,null,null,null,null,null,null,null,null,null,null,null,null,null,null,null,null,null,null,null,null,null,null,null,null,null,null,null,null,null,null,null,null,null,null,null,null,null,null,null,null,null,null,null,null,null,null,null,null,null,null,null,null,null,null,null,null,null,null,null,null,null,null,null,null,null,null,null,null,null,null,null,null,null,null,null,null,null,null,null,null,null,null,null,null,null,null,null,null,null,null,null,null,null,null,null,null,null,null,null,null,null,null,null,null,null,null,null,null,null,null,null,null,null,null,null,null,null,null,null,null,null,null,null,null,null,null,null,null,null,null,null,null,null,null,null,null,null,null,null,null,null,null,null,null,null,null,null,null,null,null,null,null,null,null,null,null,null,null,null,null,null,null,null,null,null,null,null,null,null,null,null,null,null,null,null,null,null,null,null,null,null,null,null,null,null,null,null,null,null,null,null,null,null,null,null,null,null,null,null,null,null,null,null,null,null,null,null,null,null,null,null,null,null,null,null,null,null,null,null,null,null,null,null,null,null,null,null,null,null,null,null,null,null,null,null,null,null,null,null,null,null,null,null,null,null,null,null,null,null,null,null,null,null,null,null,null,null,null,null,null,null,null,null,null,null,null,null,null,null,null,null,null,null,null,null,null,null,null,null,null,null,null,null,null,null,null,null,null,null,null,null,null,null,null,null,null,null,null,null,null,null,null,null,null,null,null,null,null,null,null,null,null,null,null,null,null,null,null,null,null,null,null,null,null,null,null,null,null,null,null,null,null,null,null,null,null,null,null,null,null,null,null,null,null,null,null,null,null,null,null,null,null,null,null,null,null,null,null,null,null,null,null,null,null,null,null,null,null,null,null,null,null,null,null,null,null,null,null,null,null,null,null,null,null,null,null,null,null,null,null,null,null,null,null,null,null,null,null,null,null,null,null,null,null,null,null,null,null,null,null,null,null,null,null,null,null,null,null,null,null,null,null,null,null,null,null,null,null,null,null,null,null,null,null,null,null,null,null,null,null,null,null,null,null,null,null,null,null,null,null,null,null,null,null,null,null,null,null,null,null,null,null,null,null,null,null,null,null,null,null,null,null,null,null,null,null,null,null,null,null,null,null,null,null,null,null,null,null,null,null,null,null,null,null,null,null,null,null,null,null,null,null,null,null,null,null,null,null,null,null,null,null,null,null,null,null,null,null,null,null,null,null,null,null,null,null,null,null,null,null,null,null,null,null,null,null,null,null,null,null,null,null,null,null,null,null,null,null,null,null,null,null,null,null,null,null,null,null,null,null,null,null,null,null,null,null,null,null,null,null,null,null,null,null,null,null,null,null,null,null,null,null,null,null,null,null,null,null,null,null,null,null,null,null,null,null,null,null,null,null,null,null,null,null,null,null,null,null,null,null,null,null,null,null,null,null,null,null,null,null,null,null,null,null,null,null,null,null,null,null,null,null,null,null,null,null,null,null,null,null,null,null,null,null,null,null,null,null,null,null,null,null,null,null,null,null,null,null,null,null,null,null,null,null,null,null,null,null,null,null,null,null,null,null,null,null,null,null,null,null,null,null,null,null,null,null,null,null,null,null,null,null,null,null,null,null,null,null,null,null,null,null,null,null,null,null,null,null,null,null,null,null,null,null,null,null,null,null,null,null,null,null,null,null,null,null,null,null,null,null,null,null,null,null,null,null,null,null,null,null,null,null,null,null,null,null,null,null,null,null,null,null,null,null,null,null,null,null,null,null,null,null,null,null,null,null,null,null,null,null,null,null,null,null,null,null,null,null,null,null,null,null,null,null,null,null,null,null,null,null,null,null,null,null,null,null,null,null,null,null,null,null,null,null,null,null,null,null,null,null,null,null,null,null,null,null,null,null,null,null,null,null,null,null,null,null,null,null,null,null,null,null,null,null,null,null,null,null,null,null,null,null,null,null,null,null,null,null,null,null,null,null,null,null,null,null,null,null,null,null,null,null,null,null,null,null,null,null,null,null,null,null,null,null,null,null,null,null,null,null,null,null,null,null,null,null,null,null,null,null,null,null,null,null,null,null,null,null,null,null,null,null,null,null,null,null,null,null,null,null,null,null,null,null,null,null,null,null,null,null,null,null,null,null,null,null,null,null,null,null,null,null,null,null,null,null,null,null,null,null,null,null,null,null,null,null,null,null,null,null,null,null,null,null,null,null,null,null,null,null,null,null,null,null,null,null,null,null,null,null,null,null,null,null,null,null,null,null,null,null,null,null,null,null,null,null,null,null,null,null,null,null,null,null,null,null,null,null,null,null,null,null,null,null,null,null,null,null,null,null,null,null,null,null,null,null,null,null,null,null,null,null,null,null,null,null,null,null,null,null,null,null,null,null,null,null,null,null,null,null,null,null,null,null,null,null,null,null,null,null,null,null,null,null,null,null,null,null,null,null,null,null,null,null,null,null,null,null,null,null,null,null,null,null,null,null,null,null,null,null,null,null,null,null,null,null,null,null,null,null,null,null,null,null,null,null,null,null,null,null,null,null,null,null,null,null,null,null,null,null,null,null,null,null,null,null,null,null,null,null,null,null,null,null,null,null,null,null,null,null,null,null,null,null,null,null,null,null,null,null,null,null,null,null,null,null,null,null,null,null,null,null,null,null,null,null,null,null,null,null,null,null,null,null,null,null,null,null,null,null,null,null,null,null,null,null,null,null,null,null,null,null,null,null,null,null,null,null,null,null,null,null,null,null,null,null,null,null,null,null,null,null,null,null,null,null,null,null,null,null,null,null,null,null,null,null,null,null,null,null,null,null,null,null,null,null,null,null,null,null,null,null,null,null,null,null,null,null,null,null,null,null,null,null,null,null,null,null,null,null,null,null,null,null,null,null,null,null,null,null,null,null,null,null,null,null,null,null,null,null,null,null,null,null,null,null,null,null,null,null,null,null,null,null,null,null,null,null,null,null,null,null,null,null,null,null,null,null,null,null,null,null,null,null,null,null,null,null,null,null,null,null,null,null,null,null,null,null,null,null,null,null,null,null,null,null,null,null,null,null,null,null,null,null,null,null,null,null,null,null,null,null,null,null,null,null,null,null,null,null,null,null,null,null,null,null,null,null,null,null,null,null,null,null,null,null,null,null,null,null,null,null,null,null,null,null,null,null,null,null,null,null,null,null,null,null,null,null,null,null,null,null,null,null,null,null,null,null,null,null,null,null,null,null,null,null,null,null,null,null,null,null,null,null,null,null,null,null,null,null,null,null,null,null,null,null,null,null,null,null,null,null,null,null,null,null,null,null,null,null,null,null,null,null,null,null,null,null,null,null,null,null,null,null,null,null,null,null,null,null,null,null,null,null,null,null,null,null,null,null,null,null,null,null,null,null,null,null,null,null,null,null,null,null,null,null,null,null,null,null,null,null,null,null,null,null,null,null,null,null,null,null,null,null,null,null,null,null,null,null,null,null,null,null,null,null,null,null,null,null,null,null,null,null,null,null,null,null,null,null,null,null,null,null,null,null,null,null,null,null,null,null,null,null,null,null,null,null,null,null,null,null,null,null,null,null,null,null,null,null,null,null,null,null,null,null,null,null,null,null,null,null,null,null,null,null,null,null,null,null,null,null,null,null,null,null,null,null,null,null,null,null,null,null,null,null,null,null,null,null,null,null,null,null,null,null,null,null,null,null,null,null,null,null,null,null,null,null,null,null,null,null,null,null,null,null,null,null,null,null,null,null,null,null,null,null,null,null,null,null,null,null,null,null,null,null,null,null,null,null,null,null,null,null,null,null,null,null,null,null,null,null,null,null,null,null,null,null,null,null,null,null,null,null,null,null,null,null,null,null,null,null,null,null,null,null,null,null,null,null,null,null,null,null,null,null,null,null,null,null,null,null,null,null,null,null,null,null,null,null,null,null,null,null,null,null,null,null,null,null,null,null,null,null,null,null,null,null,null,null,null,null,null,null,null,null,null,null,null,null,null,null,null,null,null,null,null,null,null,null,null,null,null,null,null,null,null,null,null,null,null,null,null,null,null,null,null,null,null,null,null,null,null,null,null,null,null,null,null,null,null,null,null,null,null,null,null,null,null,null,null,null,null,null,null,null,null,null,null,null,null,null,null,null,null,null,null,null,null,null,null,null,null,null,null,null,null,null,null,null,null,null,null,null,null,null,null,null,null,null,null,null,null,null,null,null,null,null,null,null,null,null,null,null,null,null,null,null,null,null,null,null,null,null,null,null,null,null,null,null,null,null,null,null,null,null,null,null,null,null,null,null,null,null,null,null,null,null,null,null,null,null,null,null,null,null,null,null,null,null,null,null,null,null,null,null,null,null,null,null,null,null,null,null,null,null,null,null,null,null,null,null,null,null,null,null,null,null,null,null,null,null,null,null,null,null,null,null,null,null,null,null,null,null,null,null,null,null,null,null,null,null,null,null,null,null,null,null,null,null,null,null,null,null,null,null,null,null,null,null,null,null,null,null,null,null,null,null,null,null,null,null,null,null,null,null,null,null,null,null,null,null,null,null,null,null,null,null,null,null,null,null,null,null,null,null,null,null,null,null,null,null,null,null,null,null,null,null,null,null,null,null,null,null,null,null,null,null,null,null,null,null,null,null,null,null,null,null,null,null,null,null,null,null,null,null,null,null,null,null,null,null,null,null,null,null,null,null,null,null,null,null,null,null,null,null,null,null,null,null,null,null,null,null,null,null,null,null,null,null,null,null,null,null,null,null,null,null,null,null,null,null,null,null,null,null,null,null,null,null,null,null,null,null,null,null,null,null,null,null,null,null,null,null,null,null,null,null,null,null,null,null,null,null,null,null,null,null,null,null,null,null,null,null,null,null,null,null,null,null,null,null,null,null,null,null,null,null,null,null,null,null,null,null,null,null,null,null,null,null,null,null,null,null,null,null,null,null,null,null,null,null,null,null,null,null,null,null,null,null,null,null,null,null,null,null,null,null,null,null,null,null,null,null,null,null,null,null,null,null,null,null,null,null,null,null,null,null,null,null,null,null,null,null,null,null,null,null,null,null,null,null,null,null,null,null,null,null,null,null,null,null,null,null,null,null,null,null,null,null,null,null,null,null,null,null,null,null,null,null,null,null,null,null,null,null,null,null,null,null,null,null,null,null,null,null,null,null,null,null,null,null,null,null,null,null,null,null,null,null,null,null,null,null,null,null,null,null,null,null,null,null,null,null,null,null,null,null,null,null,null,null,null,null,null,null,null,null,null,null,null,null,null,null,null,null,null,null,null,null,null,null,null,null,null,null,null,null,null,null,null,null,null,null,null,null,null,null,null,null,null,null,null,null,null,null,null,null,null,null,null,null,null,null,null,null,null,null,null,null,null,null,null,null,null,null,null,null,null,null,null,null,null,null,null,null,null,null,null,null,null,null,null,null,null,null,null,null,null,null,null,null,null,null,null,null,null,null,null,null,null,null,null,null,null,null,null,null,null,null,null,null,null,null,null,null,null,null,null,null,null,null,null,null,null,null,null,null,null,null,null,null,null,null,null,null,null,null,null,null,null,null,null,null,null,null,null,null,null,null,null,null,null,null,null,null,null,null,null,null,null,null,null,null,null,null,null,null,null,null,null,null,null,null,null,null,null,null,null,null,null,null,null,null,null,null,null,null,null,null,null,null,null,null,null,null,null,null,null,null,null,null,null,null,null,null,null,null,null,null,null,null,null,null,null,null,null,null,null,null,null,null,null,null,null,null,null,null,null,null,null,null,null,null,null,null,null,null,null,null,null,null,null,null,null,null,null,null,null,null,null,null,null,null,null,null,null,null,null,null,null,null,null,null,null,null,null,null,null,null,null,null,null,null,null,null,null,null,null,null,null,null,null,null,null,null,null,null,null,null,null,null,null,null,null,null,null,null,null,null,null,null,null,null,null,null,null,null,null,null,null,null,null,null,null,null,null,null,null,null,null,null,null,null,null,null,null,null,null,null,null,null,null,null,null,null,null,null,null,null,null,null,null,null,null,null,null,null,null,null,null,null,null,null,null,null,null,null,null,null,null,null,null,null,null,null,null,null,null,null,null,null,null,null,null,null,null,null,null,null,null,null,null,null,null,null,null,null,null,null,null,null,null,null,null,null,null,null,null,null,null,null,null,null,null,null,null,null,null,null,null,null,null,null,null,null,null,null,null,null,null,null,null,null,null,null,null,null,null,null,null,null,null,null,null,null,null,null,null,null,null,null,null,null,null,null,null,null,null,null,null,null,null,null,null,null,null,null,null,null,null,null,null,null,null,null,null,null,null,null,null,null,null,null,null,null,null,null,null,null,null,null,null,null,null,null,null,null,null,null,null,null,null,null,null,null,null,null,null,null,null,null,null,null,null,null,null,null,null,null,null,null,null,null,null,null,null,null,null,null,null,null,null,null,null,null,null,null,null,null,null,null,null,null,null,null,null,null,null,null,null,null,null,null,null,null,null,null,null,null,null,null,null,null,null,null,null,null,null,null,null,null,null,null,null,null,null,null,null,null,null,null,null,null,null,null,null,null,null,null,null,null,null,null,null,null,null,null,null,null,null,null,null,null,null,null,null,null,null,null,null,null,null,null,null,null,null,null,null,null,null,null,null,null,null,null,null,null,null,null,null,null,null,null,null,null,null,null,null,null,null,null,null,null,null,null,null,null,null,null,null,null,null,null,null,null,null,null,null,null,null,null,null,null,null,null,null,null,null,null,null,null,null,null,null,null,null,null,null,null,null,null,null,null,null,null,null,null,null,null,null,null,null,null,null,null,null,null,null,null,null,null,null,null,null,null,null,null,null,null,null,null,null,null,null,null,null,null,null,null,null,null,null,null,null,null,null,null,null,null,null,null,null,null,null,null,null,null,null,null,null,null,null,null,null,null,null,null,null,null,null,null,null,null,null,null,null,null,null,null,null,null,null,null,null,null,null,null,null,null,null,null,null,null,null,null,null,null,null,null,null,null,null,null,null,null,null,null,null,null,null,null,null,null,null,null,null,null,null,null,null,null,null,null,null,null,null,null,null,null,null,null,null,null,null,null,null,null,null,null,null,null,null,null,null,null,null,null,null,null,null,null,null,null,null,null,null,null,null,null,null,null,null,null,null,null,null,null,null,null,null,null,null,null,null,null,null,null,null,null,null,null,null,null,null,null,null,null,null,null,null,null,null,null,null,null,null,null,null,null,null,null,null,null,null,null,null,null,null,null,null,null,null,null,null,null,null,null,null,null,null,null,null,null,null,null,null,null,null,null,null,null,null,null,null,null,null,null,null,null,null,null,null,null,null,null,null,null,null,null,null,null,null,null,null,null,null,null,null,null,null,null,null,null,null,null,null,null,null,null,null,null,null,null,null,null,null,null,null,null,null,null,null,null,null,null,null,null,null,null,null,null,null,null,null,null,null,null,null,null,null,null,null,null,null,null,null,null,null,null,null,null,null,null,null,null,null,null,null,null,null,null,null,null,null,null,null,null,null,null,null,null,null,null,null,null,null,null,null,null,null,null,null,null,null,null,null,null,null,null,null,null,null,null,null,null,null,null,null,null,null,null,null,null,null,null,null,null,null,null,null,null,null,null,null,null,null,null,null,null,null,null,null,null,null,null,null,null,null,null,null,null,null,null,null,null,null,null,null,null,null,null,null,null,null,null,null,null,null,null,null,null,null,null,null,null,null,null,null,null,null,null,null,null,null,null,null,null,null,null,null,null,null,null,null,null,null,null,null,null,null,null,null,null,null,null,null,null,null,null,null,null,null,null,null,null,null,null,null,null,null,null,null,null,null,null,null,null,null,null,null,null,null,null,null,null,null,null,null,null,null,null,null,null,null,null,null,null,null,null,null,null,null,null,null,null,null,null,null,null,null,null,null,null,null,null,null,null,null,null,null,null,null,null,null,null,null,null,null,null,null,null,null,null,null,null,null,null,null,null,null,null,null,null,null,null,null,null,null,null,null,null,null,null,null,null,null,null,null,null,null,null,null,null,null,null,null,null,null,null,null,null,null,null,null,null,null,null,null,null,null,null,null,null,null,null,null,null,null,null,null,null,null,null,null,null,null,null,null,null,null,null,null,null,null,null,null,null,null,null,null,null,null,null,null,null,null,null,null,null,null,null,null,null,null,null,null,null,null,null,null,null,null,null,null,null,null,null,null,null,null,null,null,null,null,null,null,null,null,null,null,null,null,null,null,null,null,null,null,null,null,null,null,null,null,null,null,null,null,null,null,null,null,null,null,null,null,null,null,null,null,null,null,null,null,null,null,null,null,null,null,null,null,null,null,null,null,null,null,null,null,null,null,null,null,null,null,null,null,null,null,null,null,null,null,null,null,null,null,null,null,null,null,null,null,null,null,null,null,null,null,null,null,null,null,null,null,null,null,null,null,null,null,null,null,null,null,null,null,null,null,null,null,null,null,null,null,null,null,null,null,null,null,null,null,null,null,null,null,null,null,null,null,null,null,null,null,null,null,null,null,null,null,null,null,null,null,null,null,null,null,null,null,null,null,null,null,null,null,null,null,null,null,null,null,null,null,null,null,null,null,null,null,null,null,null,null,null,null,null,null,null,null,null,null,null,null,null,null,null,null,null,null,null,null,null,null,null,null,null,null,null,null,null,null,null,null,null,null,null,null,null,null,null,null,null,null,null,null,null,null,null,null,null,null,null,null,null,null,null,null,null,null,null,null,null,null,null,null,null,null,null,null,null,null,null,null,null,null,null,null,null,null,null,null,null,null,null,null,null,null,null,null,null,null,null,null,null,null,null,null,null,null,null,null,null,null,null,null,null,null,null,null,null,null,null,null,null,null,null,null,null,null,null,null,null,null,null,null,null,null,null,null,null,null,null,null,null,null,null,null,null,null,null,null,null,null,null,null,null,null,null,null,null,null,null,null,null,null,null,null,null,null,null,null,null,null,null,null,null,null,null,null,null,null,null,null,null,null,null,null,null,null,null,null,null,null,null,null,null,null,null,null,null,null,null,null,null,null,null,null,null,null,null,null,null,null,null,null,null,null,null,null,null,null,null,null,null,null,null,null,null,null,null,null,null,null,null,null,null,null,null,null,null,null,null,null,null,null,null,null,null,null,null,null,null,null,null,null,null,null,null,null,null,null,null,null,null,null,null,null,null,null,null,null,null,null,null,null,null,null,null,null,null,null,null,null,null,null,null,null,null,null,null,null,null,null,null,null,null,null,null,null,null,null,null,null,null,null,null,null,null,null,null,null,null,null,null,null,null,null,null,null,null,null,null,null,null,null,null,null,null,null,null,null,null,null,null,null,null,null,null,null,null,null,null,null,null,null,null,null,null,null,null,null,null,null,null,null,null,null,null,null,null,null,null,null,null,null,null,null,null,null,null,null,null,null,null,null,null,null,null,null,null,null,null,null,null,null,null,null,null,null,null,null,null,null,null,null,null,null,null,null,null,null,null,null,null,null,null,null,null,null,null,null,null,null,null,null,null,null,null,null,null,null,null,null,null,null,null,null,null,null,null,null,null,null,null,null,null,null,null,null,null,null,null,null,null,null,null,null,null,null,null,null,null,null,null,null,null,null,null,null,null,null,null,null,null,null,null,null,null,null,null,null,null,null,null,null,null,null,null,null,null,null,null,null,null,null,null,null,null,null,null,null,null,null,null,null,null,null,null,null,null,null,null,null,null,null,null,null,null,null,null,null,null,null,null,null,null,null,null,null,null,null,null,null,null,null,null,null,null,null,null,null,null,null,null,null,null,null,null,null,null,null,null,null,null,null,null,null,null,null,null,null,null,null,null,null,null,null,null,null,null,null,null,null,null,null,null,null,null,null,null,null,null,null,null,null,null,null,null,null,null,null,null,null,null,null,null,null,null,null,null,null,null,null,null,null,null,null,null,null,null,null,null,null,null,null,null,null,null,null,null,null,null,null,null,null,null,null,null,null,null,null,null,null,null,null,null,null,null,null,null,null,null,null,null,null,null,null,null,null,null,null,null,null,null,null,null,null,null,null,null,null,null,null,null,null,null,null,null,null,null,null,null,null,null,null,null,null,null,null,null,null,null,null,null,null,null,null,null,null,null,null,null,null,null,null,null,null,null,null,null,null,null,null,null,null,null,null,null,null,null,null,null,null,null,null,null,null,null,null,null,null,null,null,null,null,null,null,null,null,null,null,null,null,null,null,null,null,null,null,null,null,null,null,null,null,null,null,null,null,null,null,null,null,null,null,null,null,null,null,null,null,null,null,null,null,null,null,null,null,null,null,null,null,null,null,null,null,null,null,null,null,null,null,null,null,null,null,null,null,null,null,null,null,null,null,null,null,null,null,null,null,null,null,null,null,null,null,null,null,null,null,null,null,null,null,null,null,null,null,null,null,null,null,null,null,null,null,null,null,null,null,null,null,null,null,null,null,null,null,null,null,null,null,null,null,null,null,null,null,null,null,null,null,null,null,null,null,null,null,null,null,null,null,null,null,null,null,null,null,null,null,null,null,null,null,null,null,null,null,null,null,null,null,null,null,null,null,null,null,null,null,null,null,null,null,null,null,null,null,null,null,null,null,null,null,null,null,null,null,null,null,null,null,null,null,null,null,null,null,null,null,null,null,null,null,null,null,null,null,null,null,null,null,null,null,null,null,null,null,null,null,null,null,null,null,null,null,null,null,null,null,null,null,null,null,null,null,null,null,null,null,null,null,null,null,null,null,null,null,null,null,null,null,null,null,null,null,null,null,null,null,null,null,null,null,null,null,null,null,null,null,null,null,null,null,null,null,null,null,null,null,null,null,null,null,null,null,null,null,null,null,null,null,null,null,null,null,null,null,null,null,null,null,null,null,null,null,null,null,null,null,null,null,null,null,null,null,null,null,null,null,null,null,null,null,null,null,null,null,null,null,null,null,null,null,null,null,null,null,null,null,null,null,null,null,null,null,null,null,null,null,null,null,null,null,null,null,null,null,null,null,null,null,null,null,null,null,null,null,null,null,null,null,null,null,null,null,null,null,null,null,null,null,null,null,null,null,null,null,null,null,null,null,null,null,null,null,null,null,null,null,null,null,null,null,null,null,null,null,null,null,null,null,null,null,null,null,null,null,null,null,null,null,null,null,null,null,null,null,null,null,null,null,null,null,null,null,null,null,null,null,null,null,null,null,null,null,null,null,null,null,null,null,null,null,null,null,null,null,null,null,null,null,null,null,null,null,null,null,null,null,null,null,null,null,null,null,null,null,null,null,null,null,null,null,null,null,null,null,null,null,null,null,null,null,null,null,null,null,null,null,null,null,null,null,null,null,null,null,null,null,null,null,null,null,null,null,null,null,null,null,null,null,null,null,null,null,null,null,null,null,null,null,null,null,null,null,null,null,null,null,null,null,null,null,null,null,null,null,null,null,null,null,null,null,null,null,null,null,null,null,null,null,null,null,null,null,null,null,null,null,null,null,null,null,null,null,null,null,null,null,null,null,null,null,null,null,null,null,null,null,null,null,null,null,null,null,null,null,null,null,null,null,null,null,null,null,null,null,null,null,null,null,null,null,null,null,null,null,null,null,null,null,null,null,null,null,null,null,null,null,null,null,null,null,null,null,null,null,null,null,null,null,null,null,null,null,null,null,null,null,null,null,null,null,null,null,null,null,null,null,null,null,null,null,null,null,null,null,null,null,null,null,null,null,null,null,null,null,null,null,null,null,null,null,null,null,null,null,null,null,null,null,null,null,null,null,null,null,null,null,null,null,null,null,null,null,null,null,null,null,null,null,null,null,null,null,null,null,null,null,null,null,null,null,null,null,null,null,null,null,null,null,null,null,null,null,null,null,null,null,null,null,null,null,null,null,null,null,null,null,null,null,null,null,null,null,null,null,null,null,null,null,null,null,null,null,null,null,null,null,null,null,null,null,null,null,null,null,null,null,null,null,null,null,null,null,null,null,null,null,null,null,null,null,null,null,null,null,null,null,null,null,null,null,null,null,null,null,null,null,null,null,null,null,null,null,null,null,null,null,null,null,null,null,null,null,null,null,null,null,null,null,null,null,null,null,null,null,null,null,null,null,null,null,null,null,null,null,null,null,null,null,null,null,null,null,null,null,null,null,null,null,null,null,null,null,null,null,null,null,null,null,null,null,null,null,null,null,null,null,null,null,null,null,null,null,null,null,null,null,null,null,null,null,null,null,null,null,null,null,null,null,null,null,null,null,null,null,null,null,null,null,null,null,null,null,null,null,null,null,null,null,null,null,null,null,null,null,null,null,null,null,null,null,null,null,null,null,null,null,null,null,null,null,null,null,null,null,null,null,null,null,null,null,null,null,null,null,null,null,null,null,null,null,null,null,null,null,null,null,null,null,null,null,null,null,null,null,null,null,null,null,null,null,null,null,null,null,null,null,null,null,null,null,null,null,null,null,null,null,null,null,null,null,null,null,null,null,null,null,null,null,null,null,null,null,null,null,null,null,null,null,null,null,null,null,null,null,null,null,null,null,null,null,null,null,null,null,null,null,null,null,null,null,null,null,null,null,null,null,null,null,null,null,null,null,null,null,null,null,null,null,null,null,null,null,null,null,null,null,null,null,null,null,null,null,null,null,null,null,null,null,null,null,null,null,null,null,null,null,null,null,null,null,null,null,null,null,null,null,null,null,null,null,null,null,null,null,null,null,null,null,null,null,null,null,null,null,null,null,null,null,null,null,null,null,null,null,null,null,null,null,null,null,null,null,null,null,null,null,null,null,null,null,null,null,null,null,null,null,null,null,null,null,null,null,null,null,null,null,null,null,null,null,null,null,null,null,null,null,null,null,null,null,null,null,null,null,null,null,null,null,null,null,null,null,null,null,null,null,null,null,null,null,null,null,null,null,null,null,null,null,null,null,null,null,null,null,null,null,null,null,null,null,null,null,null,null,null,null,null,null,null,null,null,null,null,null,null,null,null,null,null,null,null,null,null,null,null,null,null,null,null,null,null,null,null,null,null,null,null,null,null,null,null,null,null,null,null,null,null,null,null,null,null,null,null,null,null,null,null,null,null,null,null,null,null,null,null,null,null,null,null,null,null,null,null,null,null,null,null,null,null,null,null,null,null,null,null,null,null,null,null,null,null,null,null,null,null,null,null,null,null,null,null,null,null,null,null,null,null,null,null,null,null,null,null,null,null,null,null,null,null,null,null,null,null,null,null,null,null,null,null,null,null,null,null,null,null,null,null,null,null,null,null,null,null,null,null,null,null,null,null,null,null,null,null,null,null,null,null,null,null,null,null,null,null,null,null,null,null,null,null,null,null,null,null,null,null,null,null,null,null,null,null,null,null,null,null,null,null,null,null,null,null,null,null,null,null,null,null,null,null,null,null,null,null,null,null,null,null,null,null,null,null,null,null,null,null,null,null,null,null,null,null,null,null,null,null,null,null,null,null,null,null,null,null,null,null,null,null,null,null,null,null,null,null,null,null,null,null,null,null,null,null,null,null,null,null,null,null,null,null,null,null,null,null,null,null,null,null,null,null,null,null,null,null,null,null,null,null,null,null,null,null,null,null,null,null,null,null,null,null,null,null,null,null,null,null,null,null,null,null,null,null,null,null,null,null,null,null,null,null,null,null,null,null,null,null,null,null,null,null,null,null,null,null,null,null,null,null,null,null,null,null,null,null,null,null,null,null,null,null,null,null,null,null,null,null,null,null,null,null,null,null,null,null,null,null,null,null,null,null,null,null,null,null,null,null,null,null,null,null,null,null,null,null,null,null,null,null,null,null,null,null,null,null,null,null,null,null,null,null,null,null,null,null,null,null,null,null,null,null,null,null,null,null,null,null,null,null,null,null,null,null,null,null,null,null,null,null,null,null,null,null,null,null,null,null,null,null,null,null,null,null,null,null,null,null,null,null,null,null,null,null,null,null,null,null,null,null,null,null,null,null,null,null,null,null,null,null,null,null,null,null,null,null,null,null,null,null,null,null,null,null,null,null,null,null,null,null,null,null,null,null,null,null,null,null,null,null,null,null,null,null,null,null,null,null,null,null,null,null,null,null,null,null,null,null,null,null,null,null,null,null,null,null,null,null,null,null,null,null,null,null,null,null,null,null,null,null,null,null,null,null,null,null,null,null,null,null,null,null,null,null,null,null,null,null,null,null,null,null,null,null,null,null,null,null,null,null,null,null,null,null,null,null,null,null,null,null,null,null,null,null,null,null,null,null,null,null,null,null,null,null,null,null,null,null,null,null,null,null,null,null,null,null,null,null,null,null,null,null,null,null,null,null,null,null,null,null,null,null,null,null,null,null,null,null,null,null,null,null,null,null,null,null,null,null,null,null,null,null,null,null,null,null,null,null,null,null,null,null,null,null,null,null,null,null,null,null,null,null,null,null,null,null,null,null,null,null,null,null,null,null,null,null,null,null,null,null,null,null,null,null,null,null,null,null,null,null,null,null,null,null,null,null,null,null,null,null,null,null,null,null,null,null,null,null,null,null,null,null,null,null,null,null,null,null,null,null,null,null,null,null,null,null,null,null,null,null,null,null,null,null,null,null,null,null,null,null,null,null,null,null,null,null,null,null,null,null,null,null,null,null,null,null,null,null,null,null,null,null,null,null,null,null,null,null,null,null,null,null,null,null,null,null,null,null,null,null,null,null,null,null,null,null,null,null,null,null,null,null,null,null,null,null,null,null,null,null,null,null,null,null,null,null,null,null,null,null,null,null,null,null,null,null,null,null,null,null,null,null,null,null,null,null,null,null,null,null,null,null,null,null,null,null,null,null,null,null,null,null,null,null,null,null,null,null,null,null,null,null,null,null,null,null,null,null,null,null,null,null,null,null,null,null,null,null,null,null,null,null,null,null,null,null,null,null,null,null,null,null,null,null,null,null,null,null,null,null,null,null,null,null,null,null,null,null,null,null,null,null,null,null,null,null,null,null,null,null,null,null,null,null,null,null,null,null,null,null,null,null,null,null,null,null,null,null,null,null,null,null,null,null,null,null,null,null,null,null,null,null,null,null,null,null,null,null,null,null,null,null,null,null,null,null,null,null,null,null,null,null,null,null,null,null,null,null,null,null,null,null,null,null,null,null,null,null,null,null,null,null,null,null,null,null,null,null,null,null,null,null,null,null,null,null,null,null,null,null,null,null,null,null,null,null,null,null,null,null,null,null,null,null,null,null,null,null,null,null,null,null,null,null,null,null,null,null,null,null,null,null,null,null,null,null,null,null,null,null,null,null,null,null,null,null,null,null,null,null,null,null,null,null,null,null,null,null,null,null,null,null,null,null,null,null,null,null,null,null,null,null,null,null,null,null,null,null,null,null,null,null,null,null,null,null,null,null,null,null,null,null,null,null,null,null,null,null,null,null,null,null,null,null,null,null,null,null,null,null,null,null,null,null,null,null,null,null,null,null,null,null,null,null,null,null,null,null,null,null,null,null,null,null,null,null,null,null,null,null,null,null,null,null,null,null,null,null,null,null,null,null,null,null,null,null,null,null,null,null,null,null,null,null,null,null,null,null,null,null,null,null,null,null,null,null,null,null,null,null,null,null,null,null,null,null,null,null,null,null,null,null,null,null,null,null,null,null,null,null,null,null,null,null,null,null,null,null,null,null,null,null,null,null,null,null,null,null,null,null,null,null,null,null,null,null,null,null,null,null,null,null,null,null,null,null,null,null,null,null,null,null,null,null,null,null,null,null,null,null,null,null,null,null,null,null,null,null,null,null,null,null,null,null,null,null,null,null,null,null,null,null,null,null,null,null,null,null,null,null,null,null,null,null,null,null,null,null,null,null,null,null,null,null,null,null,null,null,null,null,null,null,null,null,null,null,null,null,null,null,null,null,null,null,null,null,null,null,null,null,null,null,null,null,null,null,null,null,null,null,null,null,null,null,null,null,null,null,null,null,null,null,null,null,null,null,null,null,null,null,null,null,null,null,null,null,null,null,null,null,null,null,null,null,null,null,null,null,null,null,null,null,null,null,null,null,null,null,null,null,null,null,null,null,null,null,null,null,null,null,null,null,null,null,null,null,null,null,null,null,null,null,null,null,null,null,null,null,null,null,null,null,null,null,null,null,null,null,null,null,null,null,null,null,null,null,null,null,null,null,null,null,null,null,null,null,null,null,null,null,null,null,null,null,null,null,null,null,null,null,null,null,null,null,null,null,null,null,null,null,null,null,null,null,null,null,null,null,null,null,null,null,null,null,null,null,null,null,null,null,null,null,null,null,null,null,null,null,null,null,null,null,null,null,null,null,null,null,null,null,null,null,null,null,null,null,null,null,null,null,null,null,null,null,null,null,null,null,null,null,null,null,null,null,null,null,null,null,null,null,null,null,null,null,null,null,null,null,null,null,null,null,null,null,null,null,null,null,null,null,null,null,null,null,null,null,null,null,null,null,null,null,null,null,null,null,null,null,null,null,null,null,null,null,null,null,null,null,null,null,null,null,null,null,null,null,null,null,null,null,null,null,null,null,null,null,null,null,null,null,null,null,null,null,null,null,null,null,null,null,null,null,null,null,null,null,null,null,null,null,null,null,null,null,null,null,null,null,null,null,null,null,null,null,null,null,null,null,null,null,null,null,null,null,null,null,null,null,null,null,null,null,null,null,null,null,null,null,null,null,null,null,null,null,null,null,null,null,null,null,null,null,null,null,null,null,null,null,null,null,null,null,null,null,null,null,null,null,null,null,null,null,null,null,null,null,null,null,null,null,null,null,null,null,null,null,null,null,null,null,null,null,null,null,null,null,null,null,null,null,null,null,null,null,null,null,null,null,null,null,null,null,null,null,null,null,null,null,null,null,null,null,null,null,null,null,null,null,null,null,null,null,null,null,null,null,null,null,null,null,null,null,null,null,null,null,null,null,null,null,null,null,null,null,null,null,null,null,null,null,null,null,null,null,null,null,null,null,null,null,null,null,null,null,null,null,null,null,null,null,null,null,null,null,null,null,null,null,null,null,null,null,null,null,null,null,null,null,null,null,null,null,null,null,null,null,null,null,null,null,null,null,null,null,null,null,null,null,null,null,null,null,null,null,null,null,null,null,null,null,null,null,null,null,null,null,null,null,null,null,null,null,null,null,null,null,null,null,null,null,null,null,null,null,null,null,null,null,null,null,null,null,null,null,null,null,null,null,null,null,null,null,null,null,null,null,null,null,null,null,null,null,null,null,null,null,null,null,null,null,null,null,null,null,null,null,null,null,null,null,null,null,null,null,null,null,null,null,null,null,null,null,null,null,null,null,null,null,null,null,null,null,null,null,null,null,null,null,null,null,null,null,null,null,null,null,null,null,null,null,null,null,null,null,null,null,null,null,null,null,null,null,null,null,null,null,null,null,null,null,null,null,null,null,null,null,null,null,null,null,null,null,null,null,null,null,null,null,null,null,null,null,null,null,null,null,null,null,null,null,null,null,null,null,null,null,null,null,null,null,null,null,null,null,null,null,null,null,null,null,null,null,null,null,null,null,null,null,null,null,null,null,null,null,null,null,null,null,null,null,null,null,null,null,null,null,null,null,null,null,null,null,null,null,null,null,null,null,null,null,null,null,null,null,null,null,null,null,null,null,null,null,null,null,null,null,null,null,null,null,null,null,null,null,null,null,null,null,null,null,null,null,null,null,null,null,null,null,null,null,null,null,null,null,null,null,null,null,null,null,null,null,null,null,null,null,null,null,null,null,null,null,null,null,null,null,null,null,null,null,null,null,null,null,null,null,null,null,null,null,null,null,null,null,null,null,null,null,null,null,null,null,null,null,null,null,null,null,null,null,null,null,null,null,null,null,null,null,null,null,null,null,null,null,null,null,null,null,null,null,null,null,null,null,null,null,null,null,null,null,null,null,null,null,null,null,null,null,null,null,null,null,null,null,null,null,null,null,null,null,null,null,null,null,null,null,null,null,null,null,null,null,null,null,null,null,null,null,null,null,null,null,null,null,null,null,null,null,null,null,null,null,null,null,null,null,null,null,null,null,null,null,null,null,null,null,null,null,null,null,null,null,null,null,null,null,null,null,null,null,null,null,null,null,null,null,null,null,null,null,null,null,null,null,null,null,null,null,null,null,null,null,null,null,null,null,null,null,null,null,null,null,null,null,null,null,null,null,null,null,null,null,null,null,null,null,null,null,null,null,null,null,null,null,null,null,null,null,null,null,null,null,null,null,null,null,null,null,null,null,null,null,null,null,null,null,null,null,null,null,null,null,null,null,null,null,null,null,null,null,null,null,null,null,null,null,null,null,null,null,null,null,null,null,null,null,null,null,null,null,null,null,null,null,null,null,null,null,null,null,null,null,null,null,null,null,null,null,null,null,null,null,null,null,null,null,null,null,null,null,null,null,null,null,null,null,null,null,null,null,null,null,null,null,null,null,null,null,null,null,null,null,null,null,null,null,null,null,null,null,null,null,null,null,null,null,null,null,null,null,null,null,null,null,null,null,null,null,null,null,null,null,null,null,null,null,null,null,null,null,null,null,null,null,null,null,null,null,null,null,null,null,null,null,null,null,null,null,null,null,null,null,null,null,null,null,null,null,null,null,null,null,null,null,null,null,null,null,null,null,null,null,null,null,null,null,null,null,null,null,null,null,null,null,null,null,null,null,null,null,null,null,null,null,null,null,null,null,null,null,null,null,null,null,null,null,null,null,null,null,null,null,null,null,null,null,null,null,null,null,null,null,null,null,null,null,null,null,null,null,null,null,null,null,null,null,null,null,null,null,null,null,null,null,null,null,null,null,null,null,null,null,null,null,null,null,null,null,null,null,null,null,null,null,null,null,null,null,null,null,null,null,null,null,null,null,null,null,null,null,null,null,null,null,null,null,null,null,null,null,null,null,null,null,null,null,null,null,null,null,null,null,null,null,null,null,null,null,null,null,null,null,null,null,null,null,null,null,null,null,null,null,null,null,null,null,null,null,null,null,null,null,null,null,null,null,null,null,null,null,null,null,null,null,null,null,null,null,null,null,null,null,null,null,null,null,null,null,null,null,null,null,null,null,null,null,null,null,null,null,null,null,null,null,null,null,null,null,null,null,null,null,null,null,null,null,null,null,null,null,null,null,null,null,null,null,null,null,null,null,null,null,null,null,null,null,null,null,null,null,null,null,null,null,null,null,null,null,null,null,null,null,null,null,null,null,null,null,null,null,null,null,null,null,null,null,null,null,null,null,null,null,null,null,null,null,null,null,null,null,null,null,null,null,null,null,null,null,null,null,null,null,null,null,null,null,null,null,null,null,null,null,null,null,null,null,null,null,null,null,null,null,null,null,null,null,null,null,null,null,null,null,null,null,null,null,null,null,null,null,null,null,null,null,null,null,null,null,null,null,null,null,null,null,null,null,null,null,null,null,null,null,null,null,null,null,null,null,null,null,null,null,null,null,null,null,null,null,null,null,null,null,null,null,null,null,null,null,null,null,null,null,null,null,null,null,null,null,null,null,null,null,null,null,null,null,null,null,null,null,null,null,null,null,null,null,null,null,null,null,null,null,null,null,null,null,null,null,null,null,null,null,null,null,null,null,null,null,null,null,null,null,null,null,null,null,null,null,null,null,null,null,null,null,null,null,null,null,null,null,null,null,null,null,null,null,null,null,null,null,null,null,null,null,null,null,null,null,null,null,null,null,null,null,null,null,null,null,null,null,null,null,null,null,null,null,null,null,null,null,null,null,null,null,null,null,null,null,null,null,null,null,null,null,null,null,null,null,null,null,null,null,null,null,null,null,null,null,null,null,null,null,null,null,null,null,null,null,null,null,null,null,null,null,null,null,null,null,null,null,null,null,null,null,null,null,null,null,null,null,null,null,null,null,null,null,null,null,null,null,null,null,null,null,null,null,null,null,null,null,null,null,null,null,null,null,null,null,null,null,null,null,null,null,null,null,null,null,null,null,null,null,null,null,null,null,null,null,null,null,null,null,null,null,null,null,null,null,null,null,null,null,null,null,null,null,null,null,null,null,null,null,null,null,null,null,null,null,null,null,null,null,null,null,null,null,null,null,null,null,null,null,null,null,null,null,null,null,null,null,null,null,null,null,null,null,null,null,null,null,null,null,null,null,null,null,null,null,null,null,null,null,null,null,null,null,null,null,null,null,null,null,null,null,null,null,null,null,null,null,null,null,null,null,null,null,null,null,null,null,null,null,null,null,null,null,null,null,null,null,null,null,null,null,null,null,null,null,null,null,null,null,null,null,null,null,null,null,null,null,null,null,null,null,null,null,null,null,null,null,null,null,null,null,null,null,null,null,null,null,null,null,null,null,null,null,null,null,null,null,null,null,null,null,null,null,null,null,null,null,null,null,null,null,null,null,null,null,null,null,null,null,null,null,null,null,null,null,null,null,null,null,null,null,null,null,null,null,null,null,null,null,null,null,null,null,null,null,null,null,null,null,null,null,null,null,null,null,null,null,null,null,null,null,null,null,null,null,null,null,null,null,null,null,null,null,null,null,null,null,null,null,null,null,null,null,null,null,null,null,null,null,null,null,null,null,null,null,null,null,null,null,null,null,null,null,null,null,null,null,null,null,null,null,null,null,null,null,null,null,null,null,null,null,null,null,null,null,null,null,null,null,null,null,null,null,null,null,null,null,null,null,null,null,null,null,null,null,null,null,null,null,null,null,null,null,null,null,null,null,null,null,null,null,null,null,null,null,null,null,null,null,null,null,null,null,null,null,null,null,null,null,null,null,null,null,null,null,null,null,null,null,null,null,null,null,null,null,null,null,null,null,null,null,null,null,null,null,null,null,null,null,null,null,null,null,null,null,null,null,null,null,null,null,null,null,null,null,null,null,null,null,null,null,null,null,null,null,null,null,null,null,null,null,null,null,null,null,null,null,null,null,null,null,null,null,null,null,null,null,null,null,null,null,null,null,null,null,null,null,null,null,null,null,null,null,null,null,null,null,null,null,null,null,null,null,null,null,null,null,null,null,null,null,null,null,null,null,null,null,null,null,null,null,null,null,null,null,null,null,null,null,null,null,null,null,null,null,null,null,null,null,null,null,null,null,null,null,null,null,null,null,null,null,null,null,null,null,null,null,null,null,null,null,null,null,null,null,null,null,null,null,null,null,null,null,null,null,null,null,null,null,null,null,null,null,null,null,null,null,null,null,null,null,null,null,null,null,null,null,null,null,null,null,null,null,null,null,null,null,null,null,null,null,null,null,null,null,null,null,null,null,null,null,null,null,null,null,null,null,null,null,null,null,null,null,null,null,null,null,null,null,null,null,null,null,null,null,null,null,null,null,null,null,null,null,null,null,null,null,null,null,null,null,null,null,null,null,null,null,null,null,null,null,null,null,null,null,null,null,null,null,null,null,null,null,null,null,null,null,null,null,null,null,null,null,null,null,null,null,null,null,null,null,null,null,null,null,null,null,null,null,null,null,null,null,null,null,null,null,null,null,null,null,null,null,null,null,null,null,null,null,null,null,null,null,null,null,null,null,null,null,null,null,null,null,null,null,null,null,null,null,null,null,null,null,null,null,null,null,null,null,null,null,null,null,null,null,null,null,null,null,null,null,null,null,null,null,null,null,null,null,null,null,null,null,null,null,null,null,null,null,null,null,null,null,null,null,null,null,null,null,null,null,null,null,null,null,null,null,null,null,null,null,null,null,null,null,null,null,null,null,null,null,null,null,null,null,null,null,null,null,null,null,null,null,null,null,null,null,null,null,null,null,null,null,null,null,null,null,null,null,null,null,null,null,null,null,null,null,null,null,null,null,null,null,null,null,null,null,null,null,null,null,null,null,null,null,null,null,null,null,null,null,null,null,null,null,null,null,null,null,null,null,null,null,null,null,null,null,null,null,null,null,null,null,null,null,null,null,null,null,null,null,null,null,null,null,null,null,null,null,null,null,null,null,null,null,null,null,null,null,null,null,null,null,null,null,null,null,null,null,null,null,null,null,null,null,null,null,null,null,null,null,null,null,null,null,null,null,null,null,null,null,null,null,null,null,null,null,null,null,null,null,null,null,null,null,null,null,null,null,null,null,null,null,null,null,null,null,null,null,null,null,null,null,null,null,null,null,null,null,null,null,null,null,null,null,null,null,null,null,null,null,null,null,null,null,null,null,null,null,null,null,null,null,null,null,null,null,null,null,null,null,null,null,null,null,null,null,null,null,null,null,null,null,null,null,null,null,null,null,null,null,null,null,null,null,null,null,null,null,null,null,null,null,null,null,null,null,null,null,null,null,null,null,null,null,null,null,null,null,null,null,null,null,null,null,null,null,null,null,null,null,null,null,null,null,null,null,null,null,null,null,null,null,null,null,null,null,null,null,null,null,null,null,null,null,null,null,null,null,null,null,null,null,null,null,null,null,null,null,null,null,null,null,null,null,null,null,null,null,null,null,null,null,null,null,null,null,null,null,null,null,null,null,null,null,null,null,null,null,null,null,null,null,null,null,null,null,null,null,null,null,null,null,null,null,null,null,null,null,null,null,null,null,null,null,null,null,null,null,null,null,null,null,null,null,null,null,null,null,null,null,null,null,null,null,null,null,null,null,null,null,null,null,null,null,null,null,null,null,null,null,null,null,null,null,null,null,null,null,null,null,null,null,null,null,null,null,null,null,null,null,null,null,null,null,null,null,null,null,null,null,null,null,null,null,null,null,null,null,null,null,null,null,null,null,null,null,null,null,null,null,null,null,null,null,null,null,null,null,null,null,null,null,null,null,null,null,null,null,null,null,null,null,null,null,null,null,null,null,null,null,null,null,null,null,null,null,null,null,null,null,null,null,null,null,null,null,null,null,null,null,null,null,null,null,null,null,null,null,null,null,null,null,null,null,null,null,null,null,null,null,null,null,null,null,null,null,null,null,null,null,null,null,null,null,null,null,null,null,null,null,null,null,null,null,null,null,null,null,null,null,null,null,null,null,null,null,null,null,null,null,null,null,null,null,null,null,null,null,null,null,null,null,null,null,null,null,null,null,null,null,null,null,null,null,null,null,null,null,null,null,null,null,null,null,null,null,null,null,null,null,null,null,null,null,null,null,null,null,null,null,null,null,null,null,null,null,null,null,null,null,null,null,null,null,null,null,null,null,null,null,null,null,null,null,null,null,null,null,null,null,null,null,null,null,null,null,null,null,null,null,null,null,null,null,null,null,null,null,null,null,null,null,null,null,null,null,null,null,null,null,null,null,null,null,null,null,null,null,null,null,null,null,null,null,null,null,null,null,null,null,null,null,null,null,null,null,null,null,null,null,null,null,null,null,null,null,null,null,null,null,null,null,null,null,null,null,null,null,null,null,null,null,null,null,null,null,null,null,null,null,null,null,null,null,null,null,null,null,null,null,null,null,null,null,null,null,null,null,null,null,null,null,null,null,null,null,null,null,null,null,null,null,null,null,null,null,null,null,null,null,null,null,null,null,null,null,null,null,null,null,null,null,null,null,null,null,null,null,null,null,null,null,null,null,null,null,null,null,null,null,null,null,null,null,null,null,null,null,null,null,null,null,null,null,null,null,null,null,null,null,null,null,null,null,null,null,null,null,null,null,null,null,null,null,null,null,null,null,null,null,null,null,null,null,null,null,null,null,null,null,null,null,null,null,null,null,null,null,null,null,null,null,null,null,null,null,null,null,null,null,null,null,null,null,null,null,null,null,null,null,null,null,null,null,null,null,null,null,null,null,null,null,null,null,null,null,null,null,null,null,null,null,null,null,null,null,null,null,null,null,null,null,null,null,null,null,null,null,null,null,null,null,null,null,null,null,null,null,null,null,null,null,null,null,null,null,null,null,null,null,null,null,null,null,null,null,null,null,null,null,null,null,null,null,null,null,null,null,null,null,null,null,null,null,null,null,null,null,null,null,null,null,null,null,null,null,null,null,null,null,null,null,null,null,null,null,null,null,null,null,null,null,null,null,null,null,null,null,null,null,null,null,null,null,null,null,null,null,null,null,null,null,null,null,null,null,null,null,null,null,null,null,null,null,null,null,null,null,null,null,null,null,null,null,null,null,null,null,null,null,null,null,null,null,null,null,null,null,null,null,null,null,null,null,null,null,null,null,null,null,null,null,null,null,null,null,null,null,null,null,null,null,null,null,null,null,null,null,null,null,null,null,null,null,null,null,null,null,null,null,null,null,null,null,null,null,null,null,null,null,null,null,null,null,null,null,null,null,null,null,null,null,null,null,null,null,null,null,null,null,null,null,null,null,null,null,null,null,null,null,null,null,null,null,null,null,null,null,null,null,null,null,null,null,null,null,null,null,null,null,null,null,null,null,null,null,null,null,null,null,null,null,null,null,null,null,null,null,null,null,null,null,null,null,null,null,null,null,null,null,null,null,null,null,null,null,null,null,null,null,null,null,null,null,null,null,null,null,null,null,null,null,null,null,null,null,null,null,null,null,null,null,null,null,null,null,null,null,null,null,null,null,null,null,null,null,null,null,null,null,null,null,null,null,null,null,null,null,null,null,null,null,null,null,null,null,null,null,null,null,null,null,null,null,null,null,null,null,null,null,null,null,null,null,null,null,null,null,null,null,null,null,null,null,null,null,null,null,null,null,null,null,null,null,null,null,null,null,null,null,null,null,null,null,null,null,null,null,null,null,null,null,null,null,null,null,null,null,null,null,null,null,null,null,null,null,null,null,null,null,null,null,null,null,null,null,null,null,null,null,null,null,null,null,null,null,null,null,null,null,null,null,null,null,null,null,null,null,null,null,null,null,null,null,null,null,null,null,null,null,null,null,null,null,null,null,null,null,null,null,null,null,null,null,null,null,null,null,null,null,null,null,null,null,null,null,null,null,null,null,null,null,null,null,null,null,null,null,null,null,null,null,null,null,null,null,null,null,null,null,null,null,null,null,null,null,null,null,null,null,null,null,null,null,null,null,null,null,null,null,null,null,null,null,null,null,null,null,null,null,null,null,null,null,null,null,null,null,null,null,null,null,null,null,null,null,null,null,null,null,null,null,null,null,null,null,null,null,null,null,null,null,null,null,null,null,null,null,null,null,null,null,null,null,null,null,null,null,null,null,null,null,null,null,null,null,null,null,null,null,null,null,null,null,null,null,null,null,null,null,null,null,null,null,null,null,null,null,null,null,null,null,null,null,null,null,null,null,null,null,null,null,null,null,null,null,null,null,null,null,null,null,null,null,null,null,null,null,null,null,null,null,null,null,null,null,null,null,null,null,null,null,null,null,null,null,null,null,null,null,null,null,null,null,null,null,null,null,null,null,null,null,null,null,null,null,null,null,null,null,null,null,null,null,null,null,null,null,null,null,null,null,null,null,null,null,null,null,null,null,null,null,null,null,null,null,null,null,null,null,null,null,null,null,null,null,null,null,null,null,null,null,null,null,null,null,null,null,null,null,null,null,null,null,null,null,null,null,null,null,null,null,null,null,null,null,null,null,null,null,null,null,null,null,null,null,null,null,null,null,null,null,null,null,null,null,null,null,null,null,null,null,null,null,null,null,null,null,null,null,null,null,null,null,null,null,null,null,null,null,null,null,null,null,null,null,null,null,null,null,null,null,null,null,null,null,null,null,null,null,null,null,null,null,null,null,null,null,null,null,null,null,null,null,null,null,null,null,null,null,null,null,null,null,null,null,null,null,null,null,null,null,null,null,null,null,null,null,null,null,null,null,null,null,null,null,null,null,null,null,null,null,null,null,null,null,null,null,null,null,null,null,null,null,null,null,null,null,null,null,null,null,null,null,null,null,null,null,null,null,null,null,null,null,null,null,null,null,null,null,null,null,null,null,null,null,null,null,null,null,null,null,null,null,null,null,null,null,null,null,null,null,null,null,null,null,null,null,null,null,null,null,null,null,null,null,null,null,null,null,null,null,null,null,null,null,null,null,null,null,null,null,null,null,null,null,null,null,null,null,null,null,null,null,null,null,null,null,null,null,null,null,null,null,null,null,null,null,null,null,null,null,null,null,null,null,null,null,null,null,null,null,null,null,null,null,null,null,null,null,null,null,null,null,null,null,null,null,null,null,null,null,null,null,null,null,null,null,null,null,null,null,null,null,null,null,null,null,null,null,null,null,null,null,null,null,null,null,null,null,null,null,null,null,null,null,null,null,null,null,null,null,null,null,null,null,null,null,null,null,null,null,null,null,null,null,null,null,null,null,null,null,null,null,null,null,null,null,null,null,null,null,null,null,null,null,null,null,null,null,null,null,null,null,null,null,null,null,null,null,null,null,null,null,null,null,null,null,null,null,null,null,null,null,null,null,null,null,null,null,null,null,null,null,null,null,null,null,null,null,null,null,null,null,null,null,null,null,null,null,null,null,null,null,null,null,null,null,null,null,null,null,null,null,null,null,null,null,null,null,null,null,null,null,null,null,null,null,null,null,null,null,null,null,null,null,null,null,null,null,null,null,null,null,null,null,null,null,null,null,null,null,null,null,null,null,null,null,null,null,null,null,null,null,null,null,null,null,null,null,null,null,null,null,null,null,null,null,null,null,null,null,null,null,null,null,null,null,null,null,null,null,null,null,null,null,null,null,null,null,null,null,null,null,null,null,null,null,null,null,null,null,null,null,null,null,null,null,null,null,null,null,null,null,null,null,null,null,null,null,null,null,null,null,null,null,null,null,null,null,null,null,null,null,null,null,null,null,null,null,null,null,null,null,null,null,null,null,null,null,null,null,null,null,null,null,null,null,null,null,null,null,null,null,null,null,null,null,null,null,null,null,null,null,null,null,null,null,null,null,null,null,null,null,null,null,null,null,null,null,null,null,null,null,null,null,null,null,null,null,null,null,null,null,null,null,null,null,null,null,null,null,null,null,null,null,null,null,null,null,null,null,null,null,null,null,null,null,null,null,null,null,null,null,null,null,null,null,null,null,null,null,null,null,null,null,null,null,null,null,null,null,null,null,null,null,null,null,null,null,null,null,null,null,null,null,null,null,null,null,null,null,null,null,null,null,null,null,null,null,null,null,null,null,null,null,null,null,null,null,null,null,null,null,null,null,null,null,null,null,null,null,null,null,null,null,null,null,null,null,null,null,null,null,null,null,null,null,null,null,null,null,null,null,null,null,null,null,null,null,null,null,null,null,null,null,null,null,null,null,null,null,null,null,null,null,null,null,null,null,null,null,null,null,null,null,null,null,null,null,null,null,null,null,null,null,null,null,null,null,null,null,null,null,null,null,null,null,null,null,null,null,null,null,null,null,null,null,null,null,null,null,null,null,null,null,null,null,null,null,null,null,null,null,null,null,null,null,null,null,null,null,null,null,null,null,null,null,null,null,null,null,null,null,null,null,null,null,null,null,null,null,null,null,null,null,null,null,null,null,null,null,null,null,null,null,null,null,null,null,null,null,null,null,null,null,null,null,null,null,null,null,null,null,null,null,null,null,null,null,null,null,null,null,null,null,null,null,null,null,null,null,null,null,null,null,null,null,null,null,null,null,null,null,null,null,null,null,null,null,null,null,null,null,null,null,null,null,null,null,null,null,null,null,null,null,null,null,null,null,null,null,null,null,null,null,null,null,null,null,null,null,null,null,null,null,null,null,null,null,null,null,null,null,null,null,null,null,null,null,null,null,null,null,null,null,null,null,null,null,null,null,null,null,null,null,null,null,null,null,null,null,null,null,null,null,null,null,null,null,null,null,null,null,null,null,null,null,null,null,null,null,null,null,null,null,null,null,null,null,null,null,null,null,null,null,null,null,null,null,null,null,null,null,null,null,null,null,null,null,null,null,null,null,null,null,null,null,null,null,null,null,null,null,null,null,null,null,null,null,null,null,null,null,null,null,null,null,null,null,null,null,null,null,null,null,null,null,null,null,null,null,null,null,null,null,null,null,null,null,null,null,null,null,null,null,null,null,null,null,null,null,null,null,null,null,null,null,null,null,null,null,null,null,null,null,null,null,null,null,null,null,null,null,null,null,null,null,null,null,null,null,null,null,null,null,null,null,null,null,null,null,null,null,null,null,null,null,null,null,null,null,null,null,null,null,null,null,null,null,null,null,null,null,null,null,null,null,null,null,null,null,null,null,null,null,null,null,null,null,null,null,null,null,null,null,null,null,null,null,null,null,null,null,null,null,null,null,null,null,null,null,null,null,null,null,null,null,null,null,null,null,null,null,null,null,null,null,null,null,null,null,null,null,null,null,null,null,null,null,null,null,null,null,null,null,null,null,null,null,null,null,null,null,null,null,null,null,null,null,null,null,null,null,null,null,null,null,null,null,null,null,null,null,null,null,null,null,null,null,null,null,null,null,null,null,null,null,null,null,null,null,null,null,null,null,null,null,null,null,null,null,null,null,null,null,null,null,null,null,null,null,null,null,null,null,null,null,null,null,null,null,null,null,null,null,null,null,null,null,null,null,null,null,null,null,null,null,null,null,null,null,null,null,null,null,null,null,null,null,null,null,null,null,null,null,null,null,null,null,null,null,null,null,null,null,null,null,null,null,null,null,null,null,null,null,null,null,null,null,null,null,null,null,null,null,null,null,null,null,null,null,null,null,null,null,null,null,null,null,null,null,null,null,null,null,null,null,null,null,null,null,null,null,null,null,null,null,null,null,null,null,null,null,null,null,null,null,null,null,null,null,null,null,null,null,null,null,null,null,null,null,null,null,null,null,null,null,null,null,null,null,null,null,null,null,null,null,null,null,null,null,null,null,null,null,null,null,null,null,null,null,null,null,null,null,null,null,null,null,null,null,null,null,null,null,null,null,null,null,null,null,null,null,null,null,null,null,null,null,null,null,null,null,null,null,null,null,null,null,null,null,null,null,null,null,null,null,null,null,null,null,null,null,null,null,null,null,null,null,null,null,null,null,null,null,null,null,null,null,null,null,null,null,null,null,null,null,null,null,null,null,null,null,null,null,null,null,null,null,null,null,null,null,null,null,null,null,null,null,null,null,null,null,null,null,null,null,null,null,null,null,null,null,null,null,null,null,null,null,null,null,null,null,null,null,null,null,null,null,null,null,null,null,null,null,null,null,null,null,null,null,null,null,null,null,null,null,null,null,null,null,null,null,null,null,null,null,null,null,null,null,null,null,null,null,null,null,null,null,null,null,null,null,null,null,null,null,null,null,null,null,null,null,null,null,null,null,null,null,null,null,null,null,null,null,null,null,null,null,null,null,null,null,null,null,null,null,null,null,null,null,null,null,null,null,null,null,null,null,null,null,null,null,null,null,null,null,null,null,null,null,null,null,null,null,null,null,null,null,null,null,null,null,null,null,null,null,null,null,null,null,null,null,null,null,null,null,null,null,null,null,null,null,null,null,null,null,null,null,null,null,null,null,null,null,null,null,null,null,null,null,null,null,null,null,null,null,null,null,null,null,null,null,null,null,null,null,null,null,null,null,null,null,null,null,null,null,null,null,null,null,null,null,null,null,null,null,null,null,null,null,null,null,null,null,null,null,null,null,null,null,null,null,null,null,null,null,null,null,null,null,null,null,null,null,null,null,null,null,null,null,null,null,null,null,null,null,null,null,null,null,null,null,null,null,null,null,null,null,null,null,null,null,null,null,null,null,null,null,null,null,null,null,null,null,null,null,null,null,null,null,null,null,null,null,null,null,null,null,null,null,null,null,null,null,null,null,null,null,null,null,null,null,null,null,null,null,null,null,null,null,null,null,null,null,null,null,null,null,null,null,null,null,null,null,null,null,null,null,null,null,null,null,null,null,null,null,null,null,null,null,null,null,null,null,null,null,null,null,null,null,null,null,null,null,null,null,null,null,null,null,null,null,null,null,null,null,null,null,null,null,null,null,null,null,null,null,null,null,null,null,null,null,null,null,null,null,null,null,null,null,null,null,null,null,null,null,null,null,null,null,null,null,null,null,null,null,null,null,null,null,null,null,null,null,null,null,null,null,null,null,null,null,null,null,null,null,null,null,null,null,null,null,null,null,null,null,null,null,null,null,null,null,null,null,null,null,null,null,null,null,null,null,null,null,null,null,null,null,null,null,null,null,null,null,null,null,null,null,null,null,null,null,null,null,null,null,null,null,null,null,null,null,null,null,null,null,null,null,null,null,null,null,null,null,null,null,null,null,null,null,null,null,null,null,null,null,null,null,null,null,null,null,null,null,null,null,null,null,null,null,null,null,null,null,null,null,null,null,null,null,null,null,null,null,null,null,null,null,null,null,null,null,null,null,null,null,null,null,null,null,null,null,null,null,null,null,null,null,null,null,null,null,null,null,null,null,null,null,null,null,null,null,null,null,null,null,null,null,null,null,null,null,null,null,null,null,null,null,null,null,null,null,null,null,null,null,null,null,null,null,null,null,null,null,null,null,null,null,null,null,null,null,null,null,null,null,null,null,null,null,null,null,null,null,null,null,null,null,null,null,null,null,null,null,null,null,null,null,null,null,null,null,null,null,null,null,null,null,null,null,null,null,null,null,null,null,null,null,null,null,null,null,null,null,null,null,null,null,null,null,null,null,null,null,null,null,null,null,null,null,null,null,null,null,null,null,null,null,null,null,null,null,null,null,null,null,null,null,null,null,null,null,null,null,null,null,null,null,null,null,null,null,null,null,null,null,null,null,null,null,null,null,null,null,null,null,null,null,null,null,null,null,null,null,null,null,null,null,null,null,null,null,null,null,null,null,null,null,null,null,null,null,null,null,null,null,null,null,null,null,null,null,null,null,null,null,null,null,null,null,null,null,null,null,null,null,null,null,null,null,null,null,null,null,null,null,null,null,null,null,null,null,null,null,null,null,null,null,null,null,null,null,null,null,null,null,null,null,null,null,null,null,null,null,null,null,null,null,null,null,null,null,null,null,null,null,null,null,null,null,null,null,null,null,null,null,null,null,null,null,null,null,null,null,null,null,null,null,null,null,null,null,null,null,null,null,null,null,null,null,null,null,null,null,null,null,null,null,null,null,null,null,null,null,null,null,null,null,null,null,null,null,null,null,null,null,null,null,null,null,null,null,null,null,null,null,null,null,null,null,null,null,null,null,null,null,null,null,null,null,null,null,null,null,null,null,null,null,null,null,null,null,null,null,null,null,null,null,null,null,null,null,null,null,null,null,null,null,null,null,null,null,null,null,null,null,null,null,null,null,null,null,null,null,null,null,null,null,null,null,null,null,null,null,null,null,null,null,null,null,null,null,null,null,null,null,null,null,null,null,null,null,null,null,null,null,null,null,null,null,null,null,null,null,null,null,null,null,null,null,null,null,null,null,null,null,null,null,null,null,null,null,null,null,null,null,null,null,null,null,null,null,null,null,null,null,null,null,null,null,null,null,null,null,null,null,null,null,null,null,null,null,null,null,null,null,null,null,null,null,null,null,null,null,null,null,null,null,null,null,null,null,null,null,null,null,null,null,null,null,null,null,null,null,null,null,null,null,null,null,null,null,null,null,null,null,null,null,null,null,null,null,null,null,null,null,null,null,null,null,null,null,null,null,null,null,null,null,null,null,null,null,null,null,null,null,null,null,null,null,null,null,null,null,null,null,null,null,null,null,null,null,null,null,null,null,null,null,null,null,null,null,null,null,null,null,null,null,null,null,null,null,null,null,null,null,null,null,null,null,null,null,null,null,null,null,null,null,null,null,null,null,null,null,null,null,null,null,null,null,null,null,null,null,null,null,null,null,null,null,null,null,null,null,null,null,null,null,null,null,null,null,null,null,null,null,null,null,null,null,null,null,null,null,null,null,null,null,null,null,null,null,null,null,null,null,null,null,null,null,null,null,null,null,null,null,null,null,null,null,null,null,null,null,null,null,null,null,null,null,null,null,null,null,null,null,null,null,null,null,null,null,null,null,null,null,null,null,null,null,null,null,null,null,null,null,null,null,null,null,null,null,null,null,null,null,null,null,null,null,null,null,null,null,null,null,null,null,null,null,null,null,null,null,null,null,null,null,null,null,null,null,null,null,null,null,null,null,null,null,null,null,null,null,null,null,null,null,null,null,null,null,null,null,null,null,null,null,null,null,null,null,null,null,null,null,null,null,null,null,null,null,null,null,null,null,null,null,null,null,null,null,null,null,null,null,null,null,null,null,null,null,null,null,null,null,null,null,null,null,null,null,null,null,null,null,null,null,null,null,null,null,null,null,null,null,null,null,null,null,null,null,null,null,null,null,null,null,null,null,null,null,null,null,null,null,null,null,null,null,null,null,null,null,null,null,null,null,null,null,null,null,null,null,null,null,null,null,null,null,null,null,null,null,null,null,null,null,null,null,null,null,null,null,null,null,null,null,null,null,null,null,null,null,null,null,null,null,null,null,null,null,null,null,null,null,null,null,null,null,null,null,null,null,null,null,null,null,null,null,null,null,null,null,null,null,null,null,null,null,null,null,null,null,null,null,null,null,null,null,null,null,null,null,null,null,null,null,null,null,null,null,null,null,null,null,null,null,null,null,null,null,null,null,null,null,null,null,null,null,null,null,null,null,null,null,null,null,null,null,null,null,null,null,null,null,null,null,null,null,null,null,null,null,null,null,null,null,null,null,null,null,null,null,null,null,null,null,null,null,null,null,null,null,null,null,null,null,null,null,null,null,null,null,null,null,null,null,null,null,null,null,null,null,null,null,null,null,null,null,null,null,null,null,null,null,null,null,null,null,null,null,null,null,null,null,null,null,null,null,null,null,null,null,null,null,null,null,null,null,null,null,null,null,null,null,null,null,null,null,null,null,null,null,null,null,null,null,null,null,null,null,null,null,null,null,null,null,null,null,null,null,null,null,null,null,null,null,null,null,null,null,null,null,null,null,null,null,null,null,null,null,null,null,null,null,null,null,null,null,null,null,null,null,null,null,null,null,null,null,null,null,null,null,null,null,null,null,null,null,null,null,null,null,null,null,null,null,null,null,null,null,null,null,null,null,null,null,null,null,null,null,null,null,null,null,null,null,null,null,null,null,null,null,null,null,null,null,null,null,null,null,null,null,null,null,null,null,null,null,null,null,null,null,null,null,null,null,null,null,null,null,null,null,null,null,null,null,null,null,null,null,null,null,null,null,null,null,null,null,null,null,null,null,null,null,null,null,null,null,null,null,null,null,null,null,null,null,null,null,null,null,null,null,null,null,null,null,null,null,null,null,null,null,null,null,null,null,null,null,null,null,null,null,null,null,null,null,null,null,null,null,null,null,null,null,null,null,null,null,null,null,null,null,null,null,null,null,null,null,null,null,null,null,null,null,null,null,null,null,null,null,null,null,null,null,null,null,null,null,null,null,null,null,null,null,null,null,null,null,null,null,null,null,null,null,null,null,null,null,null,null,null,null,null,null,null,null,null,null,null,null,null,null,null,null,null,null,null,null,null,null,null,null,null,null,null,null,null,null,null,null,null,null,null,null,null,null,null,null,null,null,null,null,null,null,null,null,null,null,null,null,null,null,null,null,null,null,null,null,null,null,null,null,null,null,null,null,null,null,null,null,null,null,null,null,null,null,null,null,null,null,null,null,null,null,null,null,null,null,null,null,null,null,null,null,null,null,null,null,null,null,null,null,null,null,null,null,null,null,null,null,null,null,null,null,null,null,null,null,null,null,null,null,null,null,null,null,null,null,null,null,null,null,null,null,null,null,null,null,null,null,null,null,null,null,null,null,null,null,null,null,null,null,null,null,null,null,null,null,null,null,null,null,null,null,null,null,null,null,null,null,null,null,null,null,null,null,null,null,null,null,null,null,null,null,null,null,null,null,null,null,null,null,null,null,null,null,null,null,null,null,null,null,null,null,null,null,null,null,null,null,null,null,null,null,null,null,null,null,null,null,null,null,null,null,null,null,null,null,null,null,null,null,null,null,null,null,null,null,null,null,null,null,null,null,null,null,null,null,null,null,null,null,null,null,null,null,null,null,null,null,null,null,null,null,null,null,null,null,null,null,null,null,null,null,null,null,null,null,null,null,null,null,null,null,null,null,null,null,null,null,null,null,null,null,null,null,null,null,null,null,null,null,null,null,null,null,null,null,null,null,null,null,null,null,null,null,null,null,null,null,null,null,null,null,null,null,null,null,null,null,null,null,null,null,null,null,null,null,null,null,null,null,null,null,null,null,null,null,null,null,null,null,null,null,null,null,null,null,null,null,null,null,null,null,null,null,null,null,null,null,null,null,null,null,null,null,null,null,null,null,null,null,null,null,null,null,null,null,null,null,null,null,null,null,null,null,null,null,null,null,null,null,null,null,null,null,null,null,null,null,null,null,null,null,null,null,null,null,null,null,null,null,null,null,null,null,null,null,null,null,null,null,null,null,null,null,null,null,null,null,null,null,null,null,null,null,null,null,null,null,null,null,null,null,null,null,null,null,null,null,null,null,null,null,null,null,null,null,null,null,null,null,null,null,null,null,null,null,null,null,null,null,null,null,null,null,null,null,null,null,null,null,null,null,null,null,null,null,null,null,null,null,null,null,null,null,null,null,null,null,null,null,null,null,null,null,null,null,null,null,null,null,null,null,null,null,null,null,null,null,null,null,null,null,null,null,null,null,null,null,null,null,null,null,null,null,null,null,null,null,null,null,null,null,null,null,null,null,null,null,null,null,null,null,null,null,null,null,null,null,null,null,null,null,null,null,null,null,null,null,null,null,null,null,null,null,null,null,null,null,null,null,null,null,null,null,null,null,null,null,null,null,null,null,null,null,null,null,null,null,null,null,null,null,null,null,null,null,null,null,null,null,null,null,null,null,null,null,null,null,null,null,null,null,null,null,null,null,null,null,null,null,null,null,null,null,null,null,null,null,null,null,null,null,null,null,null,null,null,null,null,null,null,null,null,null,null,null,null,null,null,null,null,null,null,null,null,null,null,null,null,null,null,null,null,null,null,null,null,null,null,null,null,null,null,null,null,null,null,null,null,null,null,null,null,null,null,null,null,null,null,null,null,null,null,null,null,null,null,null,null,null,null,null,null,null,null,null,null,null,null,null,null,null,null,null,null,null,null,null,null,null,null,null,null,null,null,null,null,null,null,null,null,null,null,null,null,null,null,null,null,null,null,null,null,null,null,null,null,null,null,null,null,null,null,null,null,null,null,null,null,null,null,null,null,null,null,null,null,null,null,null,null,null,null,null,null,null,null,null,null,null,null,null,null,null,null,null,null,null,null,null,null,null,null,null,null,null,null,null,null,null,null,null,null,null,null,null,null,null,null,null,null,null,null,null,null,null,null,null,null,null,null,null,null,null,null,null,null,null,null,null,null,null,null,null,null,null,null,null,null,null,null,null,null,null,null,null,null,null,null,null,null,null,null,null,null,null,null,null,null,null,null,null,null,null,null,null,null,null,null,null,null,null,null,null,null,null,null,null,null,null,null,null,null,null,null,null,null,null,null,null,null,null,null,null,null,null,null,null,null,null,null,null,null,null,null,null,null,null,null,null,null,null,null,null,null,null,null,null,null,null,null,null,null,null,null,null,null,null,null,null,null,null,null,null,null,null,null,null,null,null,null,null,null,null,null,null,null,null,null,null,null,null,null,null,null,null,null,null,null,null,null,null,null,null,null,null,null,null,null,null,null,null,null,null,null,null,null,null,null,null,null,null,null,null,null,null,null,null,null,null,null,null,null,null,null,null,null,null,null,null,null,null,null,null,null,null,null,null,null,null,null,null,null,null,null,null,null,null,null,null,null,null,null,null,null,null,null,null,null,null,null,null,null,null,null,null,null,null,null,null,null,null,null,null,null,null,null,null,null,null,null,null,null,null,null,null,null,null,null,null,null,null,null,null,null,null,null,null,null,null,null,null,null,null,null,null,null,null,null,null,null,null,null,null,null,null,null,null,null,null,null,null,null,null,null,null,null,null,null,null,null,null,null,null,null,null,null,null,null,null,null,null,null,null,null,null,null,null,null,null,null,null,null,null,null,null,null,null,null,null,null,null,null,null,null,null,null,null,null,null,null,null,null,null,null,null,null,null,null,null,null,null,null,null,null,null,null,null,null,null,null,null,null,null,null,null,null,null,null,null,null,null,null,null,null,null,null,null,null,null,null,null,null,null,null,null,null,null,null,null,null,null,null,null,null,null,null,null,null,null,null,null,null,null,null,null,null,{"$f":"SUM(F20:XFC20)","v":0}]
["Is this post-planting claim an over-claim? Autofills. If cell turns red you are over-claiming, please review your tree costs and capital item expenditure below to claim within budget.",null,null,null,null,{"$f":"IF(F19>F17,\"Yes\",\"No\")","v":"No"}]
["If your capital costs for this financial year have been covered in full by your up-front pre-planting claim, this claim should be entered as £0 on your Claims Declaration Form and the overpaid amount as follows will be deducted from your next claim(s) due by formal amendment. Autofills.",null,null,null,null,{"$f":"IF(F20<0,ABS(F20),0)","v":0}]
[]
["Tree Costs: Please enter the ‘Cost Per Unit’ of the trees you are claiming for. This should match the costs in your original Project Cost Calculator. The ‘Number of Units’ will auto-calculate from your 'Planting Information' tab."]
["A","B","C","D","E"]
["Item","Unit Type"," Cost \nPer Unit"," Number of Units","Total cost of item"]
["E.g. Tree planting","Tree",1.5,250,375]
["Standard Trees\nSize (Trunk Width 10-12cm up to 16-18cm)","Tree",0,{"$f":"SUM('Planting Information'!K37,'Planting Information'!K19)","v":0},{"$f":"C28*D28","v":0}]
["Feathers\nSize (Height Approx 150-175cm with side branches)","Tree",0,{"$f":"SUM('Planting Information'!J19,'Planting Information'!J37)","v":0},0]
["Whips\nSize (Height Approx 100-125cm)","Tree",0,{"$f":"SUM('Planting Information'!I19,'Planting Information'!I37)","v":0},0]
[null,null,"Total",{"$f":"SUM(D28:D30)","v":0},{"$f":"SUM(E28:E30)","v":0}]
[]
["Other Capital Items: Please add in the ‘Unit Type’ (e.g. square metres) and ‘Cost per Unit’. This should match the costs in your original Project Cost Calculator. The 'Number of Units' will auto-calculate from your ‘Planting Information’ tab. "]
["A","B","C","D","E"]
["Item","Unit Type"," Cost \nPer Unit"," Number of Units","Total cost of item"]
[{"$f":"'Planting Information'!F43","v":0},null,null,{"$f":"'Planting Information'!G43","v":0},{"$f":"D36*C36","v":0}]
[{"$f":"'Planting Information'!F44","v":0},null,null,{"$f":"'Planting Information'!G44","v":0},{"$f":"D37*C37","v":0}]
[{"$f":"'Planting Information'!F45","v":0},null,null,{"$f":"'Planting Information'!G45","v":0},0]
[{"$f":"'Planting Information'!F46","v":0},null,null,{"$f":"'Planting Information'!G46","v":0},0]
[{"$f":"'Planting Information'!F47","v":0},null,null,{"$f":"'Planting Information'!G47","v":0},0]
[{"$f":"'Planting Information'!F48","v":0},null,null,{"$f":"'Planting Information'!G48","v":0},0]
[{"$f":"'Planting Information'!F49","v":0},null,null,{"$f":"'Planting Information'!G49","v":0},0]
[{"$f":"'Planting Information'!F50","v":0},null,null,{"$f":"'Planting Information'!G50","v":0},{"$f":"D43*C43","v":0}]
[{"$f":"'Planting Information'!F51","v":0},null,null,{"$f":"'Planting Information'!G51","v":0},0]
[{"$f":"'Planting Information'!F52","v":0},null,null,{"$f":"'Planting Information'!G52","v":0},0]
[{"$f":"'Planting Information'!F53","v":0},null,null,{"$f":"'Planting Information'!G53","v":0},0]
[{"$f":"'Planting Information'!F54","v":0},null,null,{"$f":"'Planting Information'!G54","v":0},0]
[{"$f":"'Planting Information'!F55","v":0},null,null,{"$f":"'Planting Information'!G55","v":0},0]
[{"$f":"'Planting Information'!F56","v":0},null,null,{"$f":"'Planting Information'!G56","v":0},0]
[{"$f":"'Planting Information'!F57","v":0},null,null,{"$f":"'Planting Information'!G57","v":0},0]
[{"$f":"'Planting Information'!F58","v":0},null,null,{"$f":"'Planting Information'!G58","v":0},0]
[null,null,null,"TOTAL",{"$f":"SUM(E36:E51)","v":0}]
[]
[null,null,null,null,"Amount"]
["TOTAL Tree/Capital Expenditure this Financial Year",null,null,null,{"$f":"E31+E52","v":0}]

{"sheet":"Maps and Photos Guidance","index":7,"n_rows":31,"n_cols":4,"rows_kept":31,"cut":false,"hidden":false,"merged":[[4,0,4,1],[29,3,38,12],[6,0,6,1],[10,0,10,1],[29,0,29,1],[0,2,38,2],[1,3,8,12],[0,3,0,12],[10,3,27,12],[28,3,28,12],[9,3,9,12],[2,0,2,1],[1,0,1,1],[0,0,0,1],[11,0,28,1],[30,0,38,1],[8,0,8,1],[9,0,9,1],[5,0,5,1]]}
["Photos submission",null,null,"Maps submission"]
["1. Title the photo files for your selected 10% of sites with the site name as it appears on the PPR to allow FC to quickly match the photo with the site:",null,null,{"$error":"#VALUE!"}]
[{"$error":"#VALUE!"}]
["2. Create a zip file with these photos to attach to your claim submission email:"]
[{"$error":"#VALUE!"}]
["3. Repeat this process with your map files (maps are required for 100% of planting sites)."]
[]
["If you are submitting your photo files within a document label them as below:"]
[{"$error":"#VALUE!"}]
["Wood Grove, LATF-2425-##-000-R4, 2024/01/01"]
[null,null,null,"\nMapping evidence\n\nTo help support the information you have provided on the PPR you must provide site specific maps showing your planting areas. A map should be attached for every planting site you have recorded.\nMake sure you include maps for both:\n•\tplanting works that have already been completed\n•\tworks that are due to be completed between your PPR submission date and the end of the financial year (31 March)\n\nYou can use (Geographic Information System) GIS maps, your own map if it meets the standards below, or a base map requested through the Forestry Commission’s Map Request Service. If you use this service, the Forestry Commission will supply a blank base map for you to mark up by hand to show your proposal.\nIf you need a map from our Map Request Service (https://www.gov.uk/government/publications/map-request-form-forestry-commission), please request it as early as possible. We will supply base maps to applicants either by post or via email. We will not accept screenshots from internet map browsers, such as Google Maps, as base maps."]
["Photographic evidence\n-\tAt this stage of the funding process, you must provide relevant photos relating to planting works completed by end of the financial year.\n-\tPhotos must be submitted for a minimum 10% of planting sites and associated capital items, clearly demonstrating the amount of planting that has taken place.\n-\tPhotos must identify the tree planting concerned. It is your responsibility to have sufficient evidence that the investment or required management has taken place. For example, more than one photo may be needed where the work exceeds the frame or is not clearly evident from a single photo.\n-\tSingle photos of each individual tree are not required, provided that all trees planted are evidenced within the photos taken. This will be more practical for larger-scale planting of feathers and whips. It may reduce the number of photos needed for standards if, for example, they are planted along a street and can all be identified and photographed from one angle.\n\nLabelling photos\nAs a minimum, give each photo file a title that matches exactly the site name or ID provided in the map and PPR. This will help us to quickly identify which site the photo corresponds to. "]
[]
[]
[]
[]
[]
[]
[]
[]
[]
[]
[]
[]
[]
[]
[]
[]
[]
[null,null,null,"When creating a map, you must comply with the following rules:\n•\tmaps must be based on a scale of 1:2,500 or 1:5,000\n•\tmap must show all the land on which LATF planting has been undertaken\n•\tboundary of the site must be clearly marked by a coloured line\n•\tlocation of the completed or proposed work must be shown and marked with a shaded/hatched area or as individual trees, with the number of trees planted in the area listed next to each location\n•\tsite name (as detailed on the PPR) must be shown\n•\tinclude a minimum 6 figure OS grid reference for the centre of the map, either on the map or in the PPR itself\n•\tmap number and total number of maps (for example, ‘1 of 3’) must be visible\n•\tgive the map file a title that clearly matches the site name or ID listed in the PPR"]
["Photographic evidence quality\n\nRequirements apply equally to digital photos or those supplied as printed photos. All photos must meet the following standards:\n\n•\tbe in focus and clearly show the relevant capital item or environmental feature\n•\tif you send your images by email, please send as JPEG files\n•\tdigital images should not be smaller than 600 x 400 pixels and ideally the image file size no larger than 400KB\n•\tprinted photos must be no smaller than 15 cm x 10 cm\n•\twhere possible, include a significant feature to provide authenticity (for example, building, road, pathway)"]

{"sheet":"Plant Healthy Nurseries","index":8,"n_rows":82,"n_cols":1,"rows_kept":82,"cut":false,"hidden":true,"merged":[]}
["Adam's Apple's Nursery"]
["Alba Trees Plc"]
["Albanwise Environment Ltd"]
["Allensmore Nurseries Ltd"]
["Arbor Farm UK Ltd"]
["Architectural Plants Ltd"]
["Aveland Trees Ltd"]
["Barcham Trees Plc"]
["Bee Happy Plants & Seeds"]
["Bernhard's Nursery"]
["Blackrow Nurseries"]
["Bloomin Forests"]
["Bolghen Tree Nursery"]
["Boningale Ltd"]
["Bordon Hill Nurseries Ltd"]
["Bristish Hardwood Tree Nursery Ltd"]
["Castle Howard Tree & Shrub Nursery"]
["Cheviot Trees Ltd"]
["Chew Valley Trees"]
["Christie Elite Nurseries Ltd"]
["Crocus"]
["Crowders Nurseries"]
["Cutlers Wood Ltd"]
["Derwent Treescapes Ltd"]
["Earley Ornamentals Ltd"]
["Elsoms Trees Ltd"]
["English Woodlands"]
["Exmoor Trees Ltd"]
["Forestry England"]
["Frank P Matthews"]
["Green Leaf Trees"]
["Green Mile Trees Ltd"]
["Greenwood Plants"]
["Griffin Nurseries"]
["Guernsey Clematis Nursery Ltd"]
["Habitat Aid Ltd"]
["Heathwood Nurseries Ltd"]
["Heydon Hill Tree Nurseries Ltd"]
["J A Jones"]
["J and A Growers"]
["James Coles and Sons (Nurseries) Ltd"]
["Johnsons Nurseries"]
["Keepers Nursery"]
["King and Co The Tree Nursery Ltd"]
["Landform Consultants Ltd"]
["Maelor Forest Nurseries Ltd"]
["Majestic Trees"]
["Mill Farm Trees"]
["Moor Trees"]
["Mycorrhizal Systems Ltd"]
["Nicholsons"]
["Oakover Nurseries Ltd"]
["Old Sodbury Tree and Plant Nursery Ltd"]
["Palmstead Nurseries Ltd"]
["Plants Ltd"]
["Prees Heath Forest Nurseries"]
["Premier Plant Producers"]
["Provender Nurseries"]
["R J Trees and Hedging Ltd"]
["Robin Tacchi Plants"]
["Royal Botanic Gardens Edinburgh"]
["Royal Botanic Bardens Kew"]
["Royal Horticultural Society Harlow Carr"]
["Royal Horticultural Society Hyde Hall"]
["Royal Horticultural Society Rosemoor"]
["RV Roger Ltd"]
["Rymer Trees Ltd"]
["Select Plants Ltd"]
["Tamar Trees"]
["The Grower"]
["Thorpe Trees"]
["Tom Adams Fruit Tree Nursery"]
["Trees Please"]
["Treseders Nursery"]
["Volmary Ltd"]
["Warwickshire County Council"]
["WeeTree Wholesale Nurseries"]
["Westacre Farms"]
["Westonbirt, The National Arboretum - Forestry England"]
["Wyevale Nurseries"]
["Wykeham Mature Plants"]
["Not Plant Healthy Certified - RtP Assessment Voucher"]